Body Name,Body,Creditor Name,Spending Service,Nature of Spend,Ledger Date,Reference Number,Goods Amount (excluding VAT)
Lancaster City Council,30UH,1st Metropolitan Locksmiths Lt,Resources,Disaster Provision,24/07/2015,jpc000464,14.35
Lancaster City Council,30UH,99p stores,Health & Housing,Equipment and Tools - General,20/07/2015,bpc003022,19.80
Lancaster City Council,30UH,A A Key and Safe,Health & Housing,Equipment and Tools - General,24/07/2015,spc001034,25.00
Lancaster City Council,30UH,A A Key and Safe,Health & Housing,Home Improvement Works,07/07/2015,spc001013,16.65
Lancaster City Council,30UH,A A Key and Safe,Health & Housing,Equipment and Tools - General,26/08/2015,bpc003229,36.46
Lancaster City Council,30UH,A A Key and Safe,Health & Housing,Materials - General,31/07/2015,bpc003101,9.37
Lancaster City Council,30UH,A A Key and Safe,Environmental Services,R & M - Buildings,03/09/2015,30167,8.33
Lancaster City Council,30UH,A A Key and Safe,Health & Housing,Sanctuary Scheme,29/07/2015,spc001038,11.99
Lancaster City Council,30UH,A A Key and Safe,Health & Housing,Sanctuary Scheme,22/09/2015,spc001110,29.98
Lancaster City Council,30UH,A A Key and Safe,Health & Housing,Home Improvement Works,02/07/2015,spc001016,6.66
Lancaster City Council,30UH,A A Key and Safe,Health & Housing,Sanctuary Scheme,02/07/2015,spc001047,55.82
Lancaster City Council,30UH,A A Key and Safe,Health & Housing,System Suspense Account    018,01/07/2015,bpc002916,3.54
Lancaster City Council,30UH,Abertay Training Ltd,Health & Housing,Service Training Budget,01/09/2015,bpc003242,300.00
Lancaster City Council,30UH,Absolute Home Textiles Ltd,Resources,Laundry,24/07/2015,ppc000323,281.25
Lancaster City Council,30UH,Ace Office Enviroments Ltd,Resources,Cleaning Materials,15/07/2015,ppc000318,33.99
Lancaster City Council,30UH,Ace Office Environments Ltd,Resources,Cleaning Materials,15/07/2015,ppc000317,38.84
Lancaster City Council,30UH,Acorn Pressurisation Services,Health & Housing,R & M - Buildings,09/09/2015,bpc003293,345.85
Lancaster City Council,30UH,Adobe,Regeneration and Planning,Services - General,08/07/2015,npc000759,14.29
Lancaster City Council,30UH,Adobe,Regeneration and Planning,Services - General,07/09/2015,npc000801,14.29
Lancaster City Council,30UH,Adobe,Regeneration and Planning,Services - General,30/09/2015,npc000847,14.29
Lancaster City Council,30UH,AKW Medicare,Health & Housing,Equipment and Tools - General,10/09/2015,spc001099,40.70
Lancaster City Council,30UH,AKW Medicare,Health & Housing,Equipment and Tools - General,10/09/2015,spc001100,89.56
Lancaster City Council,30UH,AKW Medicare,Health & Housing,Equipment and Tools - General,23/09/2015,spc001124,101.56
Lancaster City Council,30UH,Aldi,Health & Housing,Sundry Expenses,17/08/2015,bpc003183,81.62
Lancaster City Council,30UH,Aldi,Environmental Services,Hospitality,26/08/2015,30065,2.29
Lancaster City Council,30UH,Alliance Online,Environmental Services,Equipment and Tools - General,04/08/2015,29793,123.00
Lancaster City Council,30UH,Alliance Online,Environmental Services,Equipment and Tools - General,24/08/2015,30023,786.00
Lancaster City Council,30UH,Amazon,Health & Housing,Children & Young People,30/07/2015,bpc003081,6.60
Lancaster City Council,30UH,Amazon,Resources,Computer Consumables,03/07/2015,jpc000450,121.00
Lancaster City Council,30UH,Amazon,Environmental Services,Entertainment Fees,09/08/2015,29848,28.82
Lancaster City Council,30UH,Amazon,Health & Housing,Equipment and Tools - General,29/07/2015,bpc003079,10.71
Lancaster City Council,30UH,Amazon,Health & Housing,Equipment and Tools - General,29/07/2015,bpc003080,10.71
Lancaster City Council,30UH,Amazon,Health & Housing,Equipment and Tools - General,10/08/2015,bpc003237,10.70
Lancaster City Council,30UH,Amazon,Health & Housing,Equipment and Tools - General,10/08/2015,bpc003239,10.70
Lancaster City Council,30UH,Amazon,Health & Housing,Equipment and Tools - General,29/07/2015,bpc003070,98.90
Lancaster City Council,30UH,Amazon,Environmental Services,Equipment and Tools - General,22/07/2015,29575,8.30
Lancaster City Council,30UH,Amazon,Environmental Services,Equipment and Tools - General,03/09/2015,30166,5.83
Lancaster City Council,30UH,Amazon,Resources,Equipment and Tools - General,03/07/2015,jpc000448,106.63
Lancaster City Council,30UH,Amazon,Resources,Equipment and Tools - General,13/07/2015,jpc000459,121.00
Lancaster City Council,30UH,Amazon,Resources,Equipment and Tools - General,24/08/2015,jpc000482,16.49
Lancaster City Council,30UH,Amazon,Resources,Equipment and Tools - General,15/09/2015,jpc000499,46.66
Lancaster City Council,30UH,Amazon,Resources,Equipment and Tools - General,16/09/2015,jpc000503,17.90
Lancaster City Council,30UH,Amazon,Health & Housing,Equipment Funded by Reserves,22/09/2015,hpc000270,23.29
Lancaster City Council,30UH,Amazon,Health & Housing,Equipment Funded by Reserves,06/07/2015,hpc000232,21.00
Lancaster City Council,30UH,Amazon,Health & Housing,Equipment Funded by Reserves,07/08/2015,hpc000247,59.83
Lancaster City Council,30UH,Amazon,Health & Housing,Equipment Funded by Reserves,07/08/2015,hpc000248,59.83
Lancaster City Council,30UH,Amazon,Health & Housing,Equipment Funded by Reserves,07/08/2015,hpc000249,59.83
Lancaster City Council,30UH,Amazon,Health & Housing,Equipment Funded by Reserves,07/08/2015,hpc000250,59.83
Lancaster City Council,30UH,Amazon,Resources,Infrastructure - Update & Maintenance,31/07/2015,jpc000476,56.36
Lancaster City Council,30UH,Amazon,Resources,IT Consumables,02/09/2015,jpc000487,17.49
Lancaster City Council,30UH,Amazon,Environmental Services,Materials - General,04/08/2015,29779,11.87
Lancaster City Council,30UH,Amazon,Environmental Services,Materials - General,17/09/2015,30335,5.81
Lancaster City Council,30UH,Amazon,Environmental Services,Materials - General,17/09/2015,30337,1.84
Lancaster City Council,30UH,Amazon,Resources,Mobile Telephones,03/07/2015,jpc000449,12.21
Lancaster City Council,30UH,Amazon,Resources,Mobile Telephones,23/07/2015,jpc000462,53.75
Lancaster City Council,30UH,Amazon,Resources,Mobile Telephones,30/07/2015,jpc000475,420.00
Lancaster City Council,30UH,Amazon,Resources,Mobile Telephones,24/08/2015,jpc000483,27.58
Lancaster City Council,30UH,Amazon,Resources,Mobile Telephones,02/09/2015,jpc000485,13.71
Lancaster City Council,30UH,Amazon,Resources,Mobile Telephones,02/09/2015,jpc000486,13.71
Lancaster City Council,30UH,Amazon,Resources,Mobile Telephones,22/09/2015,jpc000504,-13.71
Lancaster City Council,30UH,Amazon,Resources,Mobile Telephones,22/09/2015,jpc000505,14.54
Lancaster City Council,30UH,Amazon,Resources,Mobile Telephones,22/09/2015,jpc000506,14.54
Lancaster City Council,30UH,Amazon,Resources,Office Equipment,14/09/2015,fpc000133,75.51
Lancaster City Council,30UH,Amazon,Resources,Office Equipment,14/09/2015,fpc000131,60.80
Lancaster City Council,30UH,Amazon,Resources,Office Equipment,14/09/2015,fpc000132,29.22
Lancaster City Council,30UH,Amazon,Health & Housing,Office Equipment,21/08/2015,spc001077,24.03
Lancaster City Council,30UH,Amazon,Resources,Office Equipment,07/07/2015,jpc000451,108.89
Lancaster City Council,30UH,Amazon,Health & Housing,Office Equipment,02/09/2015,hpc000265,21.94
Lancaster City Council,30UH,Amazon,Health & Housing,Office Equipment,02/09/2015,hpc000269,22.16
Lancaster City Council,30UH,Amazon,Health & Housing,Other Cleaning,29/09/2015,bpc003330,70.62
Lancaster City Council,30UH,Amazon,Health & Housing,Printing & Stationery,03/09/2015,bpc003278,79.00
Lancaster City Council,30UH,Amazon,Health & Housing,Printing & Stationery,03/09/2015,bpc003279,-79.00
Lancaster City Council,30UH,Amazon,Health & Housing,Printing & Stationery,06/07/2015,hpc000233,7.12
Lancaster City Council,30UH,Amazon,Health & Housing,Printing & Stationery,06/07/2015,hpc000237,153.45
Lancaster City Council,30UH,Amazon,Health & Housing,Printing & Stationery,06/07/2015,hpc000238,46.44
Lancaster City Council,30UH,Amazon,Environmental Services,Promenade Passes,04/08/2015,29780,28.64
Lancaster City Council,30UH,Amazon,Resources,Purchase Of Equipment,03/07/2015,jpc000449,108.89
Lancaster City Council,30UH,Amazon,Resources,Purchase Of Equipment,31/07/2015,jpc000476,29.42
Lancaster City Council,30UH,Amazon,Resources,Purchase Of Equipment,02/09/2015,jpc000484,135.42
Lancaster City Council,30UH,Amazon,Resources,Purchase Of Equipment,11/09/2015,jpc000493,6.66
Lancaster City Council,30UH,Amazon,Health & Housing,Services - General,31/07/2015,spc001042,6.60
Lancaster City Council,30UH,Amazon,Resources,System Suspense Account    018,07/07/2015,jpc000452,211.83
Lancaster City Council,30UH,Amazon,Health & Housing,Tenants Participation,22/09/2015,hpc000271,9.95
Lancaster City Council,30UH,Amazon,Governance,Books & Periodicals,07/08/2015,lpc000262,65.00
Lancaster City Council,30UH,Amazon,Environmental Services,Materials - General,22/07/2015,29564,14.70
Lancaster City Council,30UH,Amazon,Environmental Services,Equipment and Tools - General,17/09/2015,30329,5.90
Lancaster City Council,30UH,Amazon,Environmental Services,Equipment and Tools - General,18/09/2015,30342,24.62
Lancaster City Council,30UH,Amazon,Environmental Services,Materials - General,22/07/2015,29563,36.27
Lancaster City Council,30UH,Amazon,Resources,Books & Periodicals,27/07/2015,jpc000473,56.38
Lancaster City Council,30UH,Amazon,Resources,Infrastructure - Update & Maintenance,04/09/2015,jpc000492,6.65
Lancaster City Council,30UH,Amazon,Resources,Infrastructure - Update & Maintenance,28/09/2015,jpc000508,79.98
Lancaster City Council,30UH,Amazon,Health & Housing,Equipment and Tools - General,02/09/2015,bpc003261,445.26
Lancaster City Council,30UH,Amazon,Environmental Services,Printing & Stationery,08/07/2015,29415,7.08
Lancaster City Council,30UH,Amazon,Environmental Services,Materials - General,18/09/2015,30341,7.06
Lancaster City Council,30UH,Amazon,Health & Housing,Materials - General,23/09/2015,spc001122,19.13
Lancaster City Council,30UH,Amazon,Health & Housing,Materials - General,22/09/2015,spc001112,12.20
Lancaster City Council,30UH,Amazon,Environmental Services,Internal Professional Fees,02/09/2015,30114,37.28
Lancaster City Council,30UH,Amazon,Resources,Computer Consumables,01/07/2015,jpc000445,224.68
Lancaster City Council,30UH,Amazon,Health & Housing,Equipment and Tools - General,24/08/2015,bpc003213,7.07
Lancaster City Council,30UH,Amazon,Health & Housing,Equipment and Tools - General,24/08/2015,bpc003214,11.57
Lancaster City Council,30UH,Amazon,Health & Housing,Equipment and Tools - General,24/08/2015,bpc003215,12.28
Lancaster City Council,30UH,Amazon,Health & Housing,Equipment and Tools - General,24/08/2015,bpc003216,9.67
Lancaster City Council,30UH,Amazon,Health & Housing,Equipment and Tools - General,24/08/2015,bpc003217,10.83
Lancaster City Council,30UH,Amazon,Health & Housing,Equipment and Tools - General,01/07/2015,bpc002920,2.56
Lancaster City Council,30UH,Amazon,Health & Housing,Equipment and Tools - General,01/07/2015,bpc002921,98.98
Lancaster City Council,30UH,Amazon,Health & Housing,Equipment and Tools - General,01/07/2015,bpc002927,19.44
Lancaster City Council,30UH,Amazon,Resources,Infrastructure - Update & Maintenance,01/07/2015,jpc000446,14.15
Lancaster City Council,30UH,Amazon,Health & Housing,Materials - General,24/08/2015,bpc003212,10.00
Lancaster City Council,30UH,Amazon,Health & Housing,Materials - General,21/09/2015,bpc003307,9.99
Lancaster City Council,30UH,Amazon,Health & Housing,Materials - General,21/09/2015,bpc003309,73.66
Lancaster City Council,30UH,Amazon,Health & Housing,Printing & Stationery,01/07/2015,bpc002923,139.25
Lancaster City Council,30UH,Amazon,Health & Housing,Printing & Stationery,01/07/2015,bpc002924,6.49
Lancaster City Council,30UH,Amazon,Health & Housing,Printing & Stationery,09/07/2015,bpc002982,24.49
Lancaster City Council,30UH,Amazon,Health & Housing,Printing & Stationery,09/07/2015,bpc002984,42.00
Lancaster City Council,30UH,Amazon,Health & Housing,Printing & Stationery,13/08/2015,bpc003198,-6.49
Lancaster City Council,30UH,Amazon,Health & Housing,Printing & Stationery,01/09/2015,bpc003236,36.22
Lancaster City Council,30UH,Amazon,Resources,Purchase Of Equipment,01/07/2015,jpc000447,13.44
Lancaster City Council,30UH,Amazon,Resources,Purchase Of Equipment,24/07/2015,jpc000472,133.32
Lancaster City Council,30UH,Amazon,Health & Housing,Services - General,03/08/2015,bpc003125,10.57
Lancaster City Council,30UH,Amazon,Health & Housing,Services - General,03/08/2015,bpc003126,13.53
Lancaster City Council,30UH,Amazon,Health & Housing,Services - General,03/08/2015,bpc003127,15.84
Lancaster City Council,30UH,Amazon,Resources,R & M - Buildings,01/07/2015,jpc000440,14.99
Lancaster City Council,30UH,ANIMAL PLANET,Environmental Services,Materials - General,17/07/2015,29529,19.99
Lancaster City Council,30UH,ANIMAL PLANET,Environmental Services,Materials - General,24/09/2015,30415,15.34
Lancaster City Council,30UH,Apple - iTunes,Health & Housing,Software Purchase\Licences,27/07/2015,bpc003045,79.99
Lancaster City Council,30UH,APPLIANCE DIRECT,Health & Housing,Equipment Funded by Reserves,02/09/2015,hpc000259,154.16
Lancaster City Council,30UH,APPLIANCE DIRECT,Health & Housing,Equipment Funded by Reserves,02/09/2015,hpc000261,137.49
Lancaster City Council,30UH,APPLIANCE DIRECT,Health & Housing,Equipment Funded by Reserves,02/09/2015,hpc000262,154.16
Lancaster City Council,30UH,APPLIANCE DIRECT,Health & Housing,Equipment Funded by Reserves,02/09/2015,hpc000266,199.99
Lancaster City Council,30UH,APPLIANCE DIRECT,Health & Housing,Equipment Funded by Reserves,02/09/2015,hpc000267,120.82
Lancaster City Council,30UH,Arco Ltd,Health & Housing,Clothing & Uniforms,01/07/2015,spc001004,100.00
Lancaster City Council,30UH,Argos,Health & Housing,Equipment and Tools - General,13/07/2015,bpc002993,6.32
Lancaster City Council,30UH,Argos,Environmental Services,Equipment and Tools - General,27/07/2015,29642,14.95
Lancaster City Council,30UH,Argos,Health & Housing,Equipment Funded by Reserves,30/07/2015,hpc000246,23.74
Lancaster City Council,30UH,argos,Resources,Office Equipment,01/07/2015,fpc000115,38.94
Lancaster City Council,30UH,Argos,Health & Housing,Services - General,10/07/2015,bpc002988,20.87
Lancaster City Council,30UH,Argos,Health & Housing,Services - General,13/07/2015,bpc002995,29.43
Lancaster City Council,30UH,Argos,Health & Housing,Services - General,25/08/2015,bpc003223,47.49
Lancaster City Council,30UH,ASA,Health & Housing,Materials For Resale,01/07/2015,bpc002935,96.53
Lancaster City Council,30UH,ASA,Health & Housing,Materials For Resale,01/07/2015,bpc002936,215.69
Lancaster City Council,30UH,ASA,Health & Housing,Materials For Resale,01/07/2015,bpc002947,433.23
Lancaster City Council,30UH,ASA,Health & Housing,Materials For Resale,31/07/2015,bpc003103,1.65
Lancaster City Council,30UH,ASA,Health & Housing,System Suspense Account    018,01/07/2015,bpc002950,235.35
Lancaster City Council,30UH,Asda,Regeneration and Planning,Conferences & Seminars,20/07/2015,npc000763,2.89
Lancaster City Council,30UH,Asda,Health & Housing,Equipment and Tools - General,29/07/2015,bpc003074,19.17
Lancaster City Council,30UH,Asda,Health & Housing,Equipment and Tools - General,26/08/2015,bpc003232,5.83
Lancaster City Council,30UH,Asda,Health & Housing,Equipment and Tools - General,12/08/2015,bpc003153,12.50
Lancaster City Council,30UH,Asda,Health & Housing,Equipment and Tools - General,13/07/2015,bpc003000,7.50
Lancaster City Council,30UH,Asda,Environmental Services,Materials - General,01/07/2015,29291,5.21
Lancaster City Council,30UH,Asda,Environmental Services,Materials - General,07/08/2015,29842,46.67
Lancaster City Council,30UH,Asda,Health & Housing,Materials For Resale,06/07/2015,bpc002972,35.67
Lancaster City Council,30UH,Asda,Health & Housing,Materials For Resale,06/07/2015,bpc002973,19.84
Lancaster City Council,30UH,Asda,Health & Housing,Materials For Resale,27/07/2015,bpc003042,6.00
Lancaster City Council,30UH,Asda,Health & Housing,Materials For Resale,29/07/2015,bpc003075,10.70
Lancaster City Council,30UH,Asda,Health & Housing,Materials For Resale,17/08/2015,bpc003161,7.46
Lancaster City Council,30UH,Asda,Health & Housing,Materials For Resale,17/08/2015,bpc003162,5.65
Lancaster City Council,30UH,Asda,Health & Housing,Materials For Resale,02/09/2015,bpc003271,24.96
Lancaster City Council,30UH,Asda,Health & Housing,Materials For Resale,02/09/2015,bpc003272,17.79
Lancaster City Council,30UH,Asda,Health & Housing,Materials For Resale,19/09/2015,bpc003303,35.77
Lancaster City Council,30UH,Asda,Health & Housing,Materials For Resale,24/09/2015,bpc003323,11.33
Lancaster City Council,30UH,Asda,Health & Housing,Materials For Resale,28/09/2015,bpc003328,27.12
Lancaster City Council,30UH,Asda,Health & Housing,Materials For Resale,28/09/2015,bpc003329,16.80
Lancaster City Council,30UH,Asda,Health & Housing,Materials For Resale,12/08/2015,bpc003153,9.18
Lancaster City Council,30UH,Asda,Health & Housing,Materials For Resale,01/09/2015,bpc003251,11.29
Lancaster City Council,30UH,Asda,Health & Housing,Petrol & Derv,29/09/2015,bpc003331,27.96
Lancaster City Council,30UH,Asda,Health & Housing,R & M - Environmental Works,13/07/2015,hpc000243,-41.67
Lancaster City Council,30UH,Asda,Health & Housing,Services - General,10/07/2015,bpc002987,70.83
Lancaster City Council,30UH,Asda,Health & Housing,Services - General,03/08/2015,bpc003132,3.20
Lancaster City Council,30UH,Asda,Health & Housing,Services - General,20/07/2015,bpc003028,197.59
Lancaster City Council,30UH,Asda,Health & Housing,Services - General,20/07/2015,bpc003029,43.45
Lancaster City Council,30UH,Asda,Health & Housing,Equipment and Tools - General,24/08/2015,bpc003219,3.00
Lancaster City Council,30UH,Ashton Hall Garden Centre,Environmental Services,Equipment and Tools - General,28/09/2015,30450,70.00
Lancaster City Council,30UH,Aspli Safety Ltd,Environmental Services,Materials - General,07/08/2015,29992,21.49
Lancaster City Council,30UH,Atkinsons,Environmental Services,Materials For Resale,22/07/2015,29577,377.08
Lancaster City Council,30UH,Atkinsons,Environmental Services,Materials For Resale,17/09/2015,30324,1131.52
Lancaster City Council,30UH,Audio Logic,Health & Housing,Equipment and Tools - General,01/09/2015,bpc003250,2092.14
Lancaster City Council,30UH,autogrill,Health & Housing,Sundry Expenses,01/07/2015,bpc002956,5.65
Lancaster City Council,30UH,Autogrill Catering UK Ltd,Health & Housing,Sundry Expenses,06/08/2015,spc001049,7.83
Lancaster City Council,30UH,Avis ,Health & Housing,Sundry Expenses,01/07/2015,bpc002964,35.61
Lancaster City Council,30UH,Avonics,Health & Housing,Equipment and Tools - General,07/08/2015,bpc003145,480.00
Lancaster City Council,30UH,Avonics,Health & Housing,Equipment and Tools - General,13/08/2015,bpc003158,470.00
Lancaster City Council,30UH,B and M Bargains,Environmental Services,Exhibitions & Events,13/07/2015,29467,6.65
Lancaster City Council,30UH,Baker Ross,Health & Housing,Services - General,20/07/2015,bpc003037,1049.70
Lancaster City Council,30UH,barclaycard,Health & Housing,Sundry Expenses,01/07/2015,bpc002962,2.97
Lancaster City Council,30UH,battery force,Health & Housing,Equipment and Tools - General,29/07/2015,bpc003078,49.02
Lancaster City Council,30UH,Bay Travel,Health & Housing,Sundry Expenses,01/07/2015,bpc002929,1559.33
Lancaster City Council,30UH,Bay Vets Limited,Environmental Services,Services - Vets,15/07/2015,29509,179.62
Lancaster City Council,30UH,Bay Vets Limited,Environmental Services,Services - Vets,09/09/2015,30243,25.62
Lancaster City Council,30UH,BDO,Governance,Legal & Court Costs,18/09/2015,lpc000279,5125.00
Lancaster City Council,30UH,Beachbody,Health & Housing,Service Training Budget,03/09/2015,bpc003276,20.79
Lancaster City Council,30UH,Beachbody,Health & Housing,Service Training Budget,03/09/2015,bpc003280,41.58
Lancaster City Council,30UH,Beachbody,Health & Housing,Service Training Budget,14/07/2015,bpc003003,20.79
Lancaster City Council,30UH,Beachbody,Health & Housing,Service Training Budget,28/07/2015,bpc003059,20.79
Lancaster City Council,30UH,Belgrade Plaza,Governance,Software HR/Payroll - Aurora,22/07/2015,lpc000257,4.17
Lancaster City Council,30UH,Big Brown Carrier Bag,Regeneration and Planning,Materials For Resale,16/07/2015,29515,116.95
Lancaster City Council,30UH,Bikes 2U Direct,Regeneration and Planning,Long Service Awards,23/09/2015,npc000829,133.32
Lancaster City Council,30UH,Blackpool pleasure beach,Health & Housing,Services - General,22/07/2015,bpc003039,503.33
Lancaster City Council,30UH,Blackpool Wakepark,Health & Housing,Services - General,23/07/2015,bpc003040,480.00
Lancaster City Council,30UH,BLT Direct,Resources,R & M - Buildings,14/07/2015,ppc000315,179.88
Lancaster City Council,30UH,BLT Direct,Resources,R & M - Buildings,05/08/2015,ppc000334,89.28
Lancaster City Council,30UH,Booker,Regeneration and Planning,Bar Supplies,27/08/2015,npc000797,151.50
Lancaster City Council,30UH,Booker,Regeneration and Planning,Bar Supplies,14/09/2015,npc000813,36.67
Lancaster City Council,30UH,Booker,Health & Housing,Materials For Resale,01/09/2015,bpc003238,32.60
Lancaster City Council,30UH,Booker,Health & Housing,Materials For Resale,04/09/2015,bpc003286,156.17
Lancaster City Council,30UH,Booker,Environmental Services,Materials For Resale,01/07/2015,29243,592.49
Lancaster City Council,30UH,Booker,Environmental Services,Materials For Resale,15/07/2015,29507,534.88
Lancaster City Council,30UH,Booker,Environmental Services,Materials For Resale,27/07/2015,29648,640.24
Lancaster City Council,30UH,Booker,Environmental Services,Materials For Resale,28/07/2015,29672,510.04
Lancaster City Council,30UH,Booker,Environmental Services,Materials For Resale,14/08/2015,29912,744.00
Lancaster City Council,30UH,Booker,Environmental Services,Materials For Resale,21/08/2015,29982,1224.37
Lancaster City Council,30UH,Booker,Environmental Services,Materials For Resale,02/09/2015,30157,496.03
Lancaster City Council,30UH,Booker,Environmental Services,Materials For Resale,21/09/2015,30355,369.95
Lancaster City Council,30UH,Booker,Health & Housing,Materials For Resale,02/09/2015,bpc003252,17.01
Lancaster City Council,30UH,Booker,Regeneration and Planning,Bar Supplies,07/08/2015,npc000783,162.31
Lancaster City Council,30UH,Booker,Regeneration and Planning,Bar Supplies,14/08/2015,npc000791,195.80
Lancaster City Council,30UH,Booker,Health & Housing,Materials - General,28/07/2015,bpc003060,50.61
Lancaster City Council,30UH,Booker,Health & Housing,Materials - General,30/07/2015,bpc003097,222.35
Lancaster City Council,30UH,Booker,Health & Housing,Materials For Resale,15/07/2015,bpc003006,88.03
Lancaster City Council,30UH,Booker,Health & Housing,Materials For Resale,16/07/2015,bpc003012,63.99
Lancaster City Council,30UH,Booker,Health & Housing,Materials For Resale,28/07/2015,bpc003056,61.35
Lancaster City Council,30UH,Booker,Health & Housing,Materials For Resale,28/07/2015,bpc003058,99.37
Lancaster City Council,30UH,Booker,Health & Housing,Materials For Resale,30/07/2015,bpc003098,96.82
Lancaster City Council,30UH,Booker,Health & Housing,Materials For Resale,24/08/2015,bpc003203,44.94
Lancaster City Council,30UH,Booker,Health & Housing,Materials For Resale,24/08/2015,bpc003205,47.46
Lancaster City Council,30UH,Booker,Health & Housing,Materials For Resale,24/08/2015,bpc003207,10.68
Lancaster City Council,30UH,Booker,Health & Housing,Materials For Resale,02/09/2015,bpc003268,473.94
Lancaster City Council,30UH,Booker,Health & Housing,Materials For Resale,01/07/2015,bpc002932,94.76
Lancaster City Council,30UH,Booker,Health & Housing,Materials For Resale,01/07/2015,bpc002933,387.76
Lancaster City Council,30UH,Booker,Health & Housing,Materials For Resale,03/07/2015,bpc002971,80.89
Lancaster City Council,30UH,Booker,Health & Housing,Materials For Resale,13/07/2015,bpc002990,46.49
Lancaster City Council,30UH,Booker,Health & Housing,Materials For Resale,16/07/2015,bpc003009,30.25
Lancaster City Council,30UH,Booker,Health & Housing,Materials For Resale,16/07/2015,bpc003010,-6.99
Lancaster City Council,30UH,Booker,Health & Housing,Materials For Resale,27/07/2015,bpc003044,28.37
Lancaster City Council,30UH,Booker,Health & Housing,Materials For Resale,28/07/2015,bpc003054,123.93
Lancaster City Council,30UH,Booker,Health & Housing,Materials For Resale,31/07/2015,bpc003099,14.29
Lancaster City Council,30UH,Booker,Health & Housing,Materials For Resale,31/07/2015,bpc003100,189.43
Lancaster City Council,30UH,Booker,Health & Housing,Materials For Resale,15/08/2015,bpc003159,549.03
Lancaster City Council,30UH,Booker,Health & Housing,Materials For Resale,24/08/2015,bpc003211,163.54
Lancaster City Council,30UH,Booker,Health & Housing,Materials For Resale,02/09/2015,bpc003269,105.13
Lancaster City Council,30UH,Booker,Health & Housing,Materials For Resale,02/09/2015,bpc003270,201.46
Lancaster City Council,30UH,Booker,Health & Housing,Materials For Resale,09/09/2015,bpc003292,10.38
Lancaster City Council,30UH,Booker,Health & Housing,Sundry Expenses,30/07/2015,bpc003091,11.25
Lancaster City Council,30UH,Booker,Health & Housing,Vending Machine Supplies,28/07/2015,bpc003058,128.28
Lancaster City Council,30UH,Booker,Health & Housing,Vending Machine Supplies,03/07/2015,bpc002971,106.01
Lancaster City Council,30UH,Booker,Health & Housing,Vending Machine Supplies,16/07/2015,bpc003013,251.62
Lancaster City Council,30UH,Booker,Health & Housing,Vending Machine Supplies,27/07/2015,bpc003044,679.90
Lancaster City Council,30UH,Booker,Health & Housing,Materials For Resale,24/08/2015,bpc003202,10.68
Lancaster City Council,30UH,Booker,Health & Housing,Printing & Stationery,17/09/2015,bpc003300,97.96
Lancaster City Council,30UH,Booker,Health & Housing,Vending Machine Supplies,16/07/2015,bpc003008,437.48
Lancaster City Council,30UH,Booker,Health & Housing,Materials For Resale,13/07/2015,bpc002998,110.43
Lancaster City Council,30UH,Booker,Health & Housing,Materials For Resale,01/07/2015,bpc002965,209.40
Lancaster City Council,30UH,Booker,Health & Housing,Materials For Resale,30/09/2015,bpc003335,117.79
Lancaster City Council,30UH,Booths,Regeneration and Planning,AONB Executive Support,15/09/2015,npc000820,1.19
Lancaster City Council,30UH,Booths,Regeneration and Planning,AONB Executive Support,20/07/2015,npc000765,3.49
Lancaster City Council,30UH,Booths,Regeneration and Planning,R & M - Buildings,15/09/2015,npc000819,6.16
Lancaster City Council,30UH,Booths,Regeneration and Planning,R & M - Buildings,20/07/2015,npc000766,7.08
Lancaster City Council,30UH,Boots,Regeneration and Planning,Office Equipment,07/09/2015,npc000802,4.48
Lancaster City Council,30UH,Borderloos,Regeneration and Planning,Exhibitions & Events,01/07/2015,npc000747,58.25
Lancaster City Council,30UH,Borderloos,Regeneration and Planning,Exhibitions & Events,09/09/2015,npc000805,174.75
Lancaster City Council,30UH,Bowcom,Environmental Services,Materials - General,03/09/2015,30165,90.37
Lancaster City Council,30UH,Bowling Green Service Station,Environmental Services,Fuel Oil,27/07/2015,29637,50.53
Lancaster City Council,30UH,bradford_leeds*appliances*,Environmental Services,Clothing & Uniforms,14/08/2015,29894,54.99
Lancaster City Council,30UH,Bramblethope Ltd,Health & Housing,Materials For Resale,02/09/2015,bpc003253,34.80
Lancaster City Council,30UH,Breg Products,Health & Housing,Equipment and Tools - General,02/09/2015,bpc003264,220.00
Lancaster City Council,30UH,British Gas,Health & Housing,Home Improvement Works,24/07/2015,spc001031,98.00
Lancaster City Council,30UH,British Telecom,Health & Housing,Telephones,01/09/2015,bpc003243,154.45
Lancaster City Council,30UH,British Telecom,Health & Housing,Telephones,30/07/2015,bpc003089,114.95
Lancaster City Council,30UH,BROXAP,Environmental Services,Materials - General,17/09/2015,30326,17.50
Lancaster City Council,30UH,Bryan Hoggarth,Environmental Services,Miscellaneous Expenditure,01/07/2015,29247,126.00
Lancaster City Council,30UH,BT,Regeneration and Planning,Telephones,20/07/2015,npc000768,88.50
Lancaster City Council,30UH,BT,Regeneration and Planning,Telephones,18/08/2015,npc000793,230.17
Lancaster City Council,30UH,BT Business Direct Ltd,Resources,Office Equipment,01/07/2015,jpc000442,1581.45
Lancaster City Council,30UH,BT Business Direct Ltd,Resources,Office Equipment,01/07/2015,jpc000443,2.80
Lancaster City Council,30UH,BT Business Direct Ltd,Resources,Purchase Of Equipment,01/07/2015,jpc000441,21.69
Lancaster City Council,30UH,BT Business Direct Ltd,Resources,Purchase Of Equipment,24/07/2015,jpc000467,241.52
Lancaster City Council,30UH,BT Business Direct Ltd,Resources,Purchase Of Equipment,24/07/2015,jpc000468,106.37
Lancaster City Council,30UH,BT Business Direct Ltd,Resources,Purchase Of Equipment,24/07/2015,jpc000470,394.60
Lancaster City Council,30UH,BT Business Direct Ltd,Resources,Purchase Of Equipment,24/07/2015,jpc000471,225.12
Lancaster City Council,30UH,BT Business Direct Ltd,Resources,Purchase Of Equipment,03/08/2015,jpc000478,374.90
Lancaster City Council,30UH,BT Business Direct Ltd,Resources,Purchase Of Equipment,03/08/2015,jpc000479,9.33
Lancaster City Council,30UH,BT Conferencing,Governance,Legal & Court Costs,14/07/2015,lpc000256,40.00
Lancaster City Council,30UH,Burlingtons,Regeneration and Planning,Clothing & Uniforms,03/09/2015,30171,107.77
Lancaster City Council,30UH,Burnley Borough Council,Health & Housing,Marketing,29/07/2015,bpc003066,80.00
Lancaster City Council,30UH,Burnley Borough Council,Health & Housing,Marketing,29/07/2015,bpc003067,160.00
Lancaster City Council,30UH,Burnley Borough Council,Health & Housing,Marketing,07/08/2015,bpc003299,1892.65
Lancaster City Council,30UH,Burnley Borough Council,Regeneration and Planning,Marketing,28/07/2015,npc000775,300.00
Lancaster City Council,30UH,Buydirect4u.co.uk,Regeneration and Planning,Equipment and Tools - General,22/07/2015,npc000769,34.54
Lancaster City Council,30UH,C J Papers,Regeneration and Planning,Printing & Stationery,14/07/2015,29656,8.80
Lancaster City Council,30UH,C J Papers,Regeneration and Planning,Printing & Stationery,03/09/2015,30188,6.60
Lancaster City Council,30UH,Cabinn,Health & Housing,Sundry Expenses,17/08/2015,bpc003181,248.41
Lancaster City Council,30UH,CABLES TO GO,Health & Housing,Printing & Stationery,06/07/2015,hpc000230,20.99
Lancaster City Council,30UH,Cairndale Labelling (Briddon B,Regeneration and Planning,Printing & Stationery,01/07/2015,29295,278.75
Lancaster City Council,30UH,Calverton Finance Ltd,Regeneration and Planning,Exhibitions,30/09/2015,npc000844,697.00
Lancaster City Council,30UH,Cambers Country Store,Health & Housing,Equipment and Tools - General,07/09/2015,spc001093,60.83
Lancaster City Council,30UH,Cannon Hygeine,Health & Housing,Cleansing Equipment,01/07/2015,bpc002948,25.33
Lancaster City Council,30UH,cards and candles,Health & Housing,Services - General,29/07/2015,bpc003071,8.25
Lancaster City Council,30UH,CEF,Health & Housing,Equipment and Tools - General,12/08/2015,bpc003154,66.83
Lancaster City Council,30UH,Chubb,Environmental Services,Security Services,15/07/2015,29510,180.00
Lancaster City Council,30UH,CIEH,Health & Housing,Service Training Budget,11/08/2015,spc001058,40.00
Lancaster City Council,30UH,Cipfa,Resources,Conferences & Seminars,14/09/2015,fpc000129,30.00
Lancaster City Council,30UH,Cipfa,Resources,Conferences & Seminars,14/09/2015,fpc000130,30.00
Lancaster City Council,30UH,Ciria,Health & Housing,Equipment and Tools - General,03/07/2015,spc001012,51.24
Lancaster City Council,30UH,CitizenM London,Health & Housing,Use Of Public Tpt - Officers,03/09/2015,spc001090,106.71
Lancaster City Council,30UH,City Electrical Factors,Regeneration and Planning,Equipment and Tools - General,01/07/2015,npc000751,149.01
Lancaster City Council,30UH,Classic Engraving,Regeneration and Planning,R & M - General,03/07/2015,npc000770,37.50
Lancaster City Council,30UH,Cleggs,Environmental Services,Materials For Resale,02/09/2015,30155,329.54
Lancaster City Council,30UH,Cleggs,Environmental Services,Materials For Resale,01/07/2015,29241,261.57
Lancaster City Council,30UH,Cleggs,Environmental Services,Materials For Resale,15/07/2015,29505,202.96
Lancaster City Council,30UH,Cleggs,Environmental Services,Materials For Resale,03/09/2015,30159,457.98
Lancaster City Council,30UH,clintons,Health & Housing,Services - General,29/07/2015,bpc003073,2.49
Lancaster City Council,30UH,CO OP,Environmental Services,Hospitality,24/09/2015,30416,10.93
Lancaster City Council,30UH,CO OP,Health & Housing,Materials For Resale,15/07/2015,bpc003007,9.65
Lancaster City Council,30UH,Coles hardware and DIY,Health & Housing,Materials - General,17/08/2015,spc001067,58.33
Lancaster City Council,30UH,Coles hardware and DIY,Health & Housing,Equipment and Tools - General,22/09/2015,spc001109,254.96
Lancaster City Council,30UH,Comms Express Ltd,Resources,Infrastructure - Update & Maintenance,31/07/2015,jpc000477,234.78
Lancaster City Council,30UH,Comms Express Ltd,Resources,Infrastructure - Update & Maintenance,14/09/2015,jpc000495,157.00
Lancaster City Council,30UH,Comms Express Ltd,Resources,Purchase Of Equipment,15/07/2015,jpc000461,0.01
Lancaster City Council,30UH,comwell hvide,Health & Housing,Sundry Expenses,01/07/2015,bpc002957,141.56
Lancaster City Council,30UH,Concept 2,Health & Housing,Equipment and Tools - General,30/07/2015,bpc003086,1779.17
Lancaster City Council,30UH,Cordee,Regeneration and Planning,Materials For Resale,20/07/2015,29549,155.74
Lancaster City Council,30UH,Cordee,Regeneration and Planning,Materials For Resale,14/08/2015,29914,129.84
Lancaster City Council,30UH,Cordee,Regeneration and Planning,Materials For Resale,03/09/2015,30170,64.90
Lancaster City Council,30UH,Cornerstone Barrister Chambers,Governance,Provision For Staff Turnover,03/07/2015,lpc000251,100.00
Lancaster City Council,30UH,Correct Flow,Health & Housing,Chemicals,28/07/2015,bpc003064,415.60
Lancaster City Council,30UH,Correct Flow,Health & Housing,Chemicals,21/09/2015,bpc003308,277.12
Lancaster City Council,30UH,Correct Flow,Health & Housing,System Suspense Account    018,30/09/2015,bpc003343,24.00
Lancaster City Council,30UH,Correct Flow,Health & Housing,Chemicals,18/08/2015,bpc003185,48.29
Lancaster City Council,30UH,Correct Flow,Health & Housing,Materials For Resale,18/08/2015,bpc003186,147.17
Lancaster City Council,30UH,Countrystyle Meats Farmshop,Environmental Services,Materials For Resale,05/08/2015,29799,496.76
Lancaster City Council,30UH,Countrystyle Meats Farmshop,Environmental Services,Materials For Resale,21/08/2015,29979,689.59
Lancaster City Council,30UH,coursesforsuccess.co.uk,Health & Housing,Service Training Budget,29/07/2015,bpc003072,399.00
Lancaster City Council,30UH,Craftis,Health & Housing,Materials - General,21/09/2015,bpc003311,412.19
Lancaster City Council,30UH,createsend.com,Regeneration and Planning,Marketing,17/07/2015,npc000762,17.63
Lancaster City Council,30UH,createsend.com,Regeneration and Planning,Marketing,09/09/2015,npc000807,18.36
Lancaster City Council,30UH,Cross Country,Governance,Service Training Budget,23/09/2015,lpc000281,123.80
Lancaster City Council,30UH,Crucial.com,Resources,Office Equipment,07/08/2015,jpc000481,34.99
Lancaster City Council,30UH,CS Catering Equipment,Environmental Services,Equipment and Tools - General,27/07/2015,29645,158.32
Lancaster City Council,30UH,D.V.S.A.,Environmental Services,Materials - General,15/09/2015,30295,205.00
Lancaster City Council,30UH,Dale Sauna Ltd,Health & Housing,R & M - Buildings,03/09/2015,bpc003298,177.48
Lancaster City Council,30UH,DaleSauna,Health & Housing,R & M - Buildings,02/09/2015,bpc003263,174.00
Lancaster City Council,30UH,Dalton Square Practice,Governance,Services - Medical Fees,27/08/2015,lpc000269,90.00
Lancaster City Council,30UH,danske bank,Health & Housing,Sundry Expenses,01/07/2015,bpc002963,100.62
Lancaster City Council,30UH,Dantaxi,Health & Housing,Sundry Expenses,06/08/2015,spc001051,19.44
Lancaster City Council,30UH,David Willan Quality Fresh Foods,Environmental Services,Materials For Resale,15/07/2015,29502,459.00
Lancaster City Council,30UH,David Willan Quality Fresh Foods,Environmental Services,Materials For Resale,21/08/2015,29990,592.63
Lancaster City Council,30UH,David Willan Quality Fresh Foods,Environmental Services,Materials For Resale,15/09/2015,30297,719.34
Lancaster City Council,30UH,Davies Sports - Findel Educati,Health & Housing,Services - General,20/07/2015,bpc003035,38.98
Lancaster City Council,30UH,Dennis Barnfield Ltd,Environmental Services,Repair & Mtce Of Vehicles,03/09/2015,30173,149.31
Lancaster City Council,30UH,Dennis Barnfield Ltd,Environmental Services,Repair & Mtce Of Vehicles,09/09/2015,30239,42.00
Lancaster City Council,30UH,Dennis Barnfield Ltd,Health & Housing,Equipment and Tools - General,01/09/2015,bpc003241,1405.75
Lancaster City Council,30UH,Deposit photos,Health & Housing,Photographic Materials,07/08/2015,bpc003196,110.18
Lancaster City Council,30UH,Digital Isle Limited,Resources,Infrastructure - Update & Maintenance,24/07/2015,jpc000466,29.75
Lancaster City Council,30UH,Direct Linen Textiles Ltd,Health & Housing,Equipment and Tools - General,10/08/2015,bpc003148,215.70
Lancaster City Council,30UH,Direct Linen Textiles Ltd,Resources,Laundry,24/07/2015,ppc000324,468.60
Lancaster City Council,30UH,Direct Parts T/A Gym Fit,Health & Housing,Equipment and Tools - General,02/07/2015,bpc002967,117.00
Lancaster City Council,30UH,Direct Parts T/A Gym Fit,Health & Housing,Equipment and Tools - General,20/07/2015,bpc003030,517.31
Lancaster City Council,30UH,Disclosure Scotland,Governance,Infrastructure - Update & Maintenance,01/07/2015,lpc000249,25.00
Lancaster City Council,30UH,Disclosure Scotland,Resources,Infrastructure - Update & Maintenance,25/08/2015,jpc000491,25.00
Lancaster City Council,30UH,Discosure Scotland,Resources,Infrastructure - Update & Maintenance,14/09/2015,jpc000494,25.00
Lancaster City Council,30UH,Discount Displays,Health & Housing,Printing & Stationery,09/07/2015,bpc002978,437.00
Lancaster City Council,30UH,DISCOUNT FIRE SUPPLIES,Health & Housing,Office Equipment,07/08/2015,hpc000253,29.34
Lancaster City Council,30UH,Displaysense Ltd,Health & Housing,Equipment and Tools - General,03/08/2015,bpc003128,317.28
Lancaster City Council,30UH,dunelm,Health & Housing,Equipment and Tools - General,26/08/2015,bpc003233,6.21
Lancaster City Council,30UH,Dvla,Environmental Services,Vehicle Licences,07/07/2015,29385,227.50
Lancaster City Council,30UH,Dvla,Environmental Services,Vehicle Licences,07/07/2015,29386,227.50
Lancaster City Council,30UH,Dvla,Environmental Services,Vehicle Licences,07/07/2015,29387,227.50
Lancaster City Council,30UH,Dvla,Environmental Services,Vehicle Licences,07/07/2015,29388,227.50
Lancaster City Council,30UH,Dvla,Environmental Services,Vehicle Licences,07/07/2015,29389,227.50
Lancaster City Council,30UH,Dvla,Environmental Services,Vehicle Licences,07/07/2015,29390,227.50
Lancaster City Council,30UH,Dvla,Environmental Services,Vehicle Licences,07/07/2015,29391,227.50
Lancaster City Council,30UH,Dvla,Environmental Services,Vehicle Licences,07/07/2015,29392,227.50
Lancaster City Council,30UH,Dvla,Environmental Services,Vehicle Licences,07/07/2015,29393,227.50
Lancaster City Council,30UH,Dvla,Environmental Services,Vehicle Licences,07/07/2015,29395,227.50
Lancaster City Council,30UH,Dvla,Environmental Services,Vehicle Licences,07/07/2015,29396,227.50
Lancaster City Council,30UH,Dvla,Environmental Services,Vehicle Licences,07/07/2015,29397,227.50
Lancaster City Council,30UH,Dvla,Environmental Services,Vehicle Licences,07/07/2015,29398,227.50
Lancaster City Council,30UH,Dvla,Environmental Services,Vehicle Licences,07/07/2015,29399,227.50
Lancaster City Council,30UH,Dvla,Environmental Services,Vehicle Licences,07/07/2015,29400,227.50
Lancaster City Council,30UH,Dvla,Environmental Services,Vehicle Licences,07/07/2015,29401,227.50
Lancaster City Council,30UH,Dvla,Environmental Services,Vehicle Licences,07/07/2015,29402,227.50
Lancaster City Council,30UH,Dvla,Environmental Services,Vehicle Licences,07/07/2015,29403,227.50
Lancaster City Council,30UH,Dvla,Environmental Services,Vehicle Licences,20/07/2015,29536,227.50
Lancaster City Council,30UH,Dvla,Environmental Services,Vehicle Licences,20/07/2015,29537,227.50
Lancaster City Council,30UH,Dvla,Environmental Services,Vehicle Licences,10/08/2015,29856,167.50
Lancaster City Council,30UH,Dvla,Environmental Services,Vehicle Licences,10/08/2015,29857,167.50
Lancaster City Council,30UH,Dvla,Environmental Services,Vehicle Licences,10/08/2015,29858,652.50
Lancaster City Council,30UH,Dvla,Environmental Services,Vehicle Licences,10/08/2015,29859,167.50
Lancaster City Council,30UH,Dvla,Environmental Services,Vehicle Licences,10/08/2015,29860,167.50
Lancaster City Council,30UH,Dvla,Environmental Services,Vehicle Licences,10/08/2015,29861,167.50
Lancaster City Council,30UH,Dvla,Environmental Services,Vehicle Licences,10/08/2015,29862,227.50
Lancaster City Council,30UH,Dvla,Environmental Services,Vehicle Licences,10/08/2015,29863,227.50
Lancaster City Council,30UH,Dvla,Environmental Services,Vehicle Licences,10/08/2015,29864,227.50
Lancaster City Council,30UH,Dvla,Environmental Services,Vehicle Licences,10/08/2015,29865,227.50
Lancaster City Council,30UH,Dvla,Environmental Services,Vehicle Licences,10/08/2015,29866,227.50
Lancaster City Council,30UH,Dvla,Environmental Services,Vehicle Licences,10/08/2015,29867,227.50
Lancaster City Council,30UH,Dvla,Environmental Services,Vehicle Licences,10/08/2015,29868,227.50
Lancaster City Council,30UH,Dvla,Environmental Services,Vehicle Licences,10/08/2015,29869,227.50
Lancaster City Council,30UH,Dvla,Environmental Services,Vehicle Licences,10/08/2015,29870,227.50
Lancaster City Council,30UH,Dvla,Environmental Services,Vehicle Licences,10/08/2015,29871,227.50
Lancaster City Council,30UH,Dvla,Environmental Services,Vehicle Licences,10/08/2015,29872,227.50
Lancaster City Council,30UH,Dvla,Environmental Services,Vehicle Licences,10/08/2015,29873,227.50
Lancaster City Council,30UH,Dvla,Environmental Services,Vehicle Licences,09/09/2015,30224,167.50
Lancaster City Council,30UH,Dvla,Environmental Services,Vehicle Licences,09/09/2015,30225,227.50
Lancaster City Council,30UH,Dvla,Environmental Services,Vehicle Licences,09/09/2015,30226,227.50
Lancaster City Council,30UH,Dvla,Environmental Services,Vehicle Licences,09/09/2015,30227,227.50
Lancaster City Council,30UH,Dvla,Environmental Services,Vehicle Licences,09/09/2015,30228,227.50
Lancaster City Council,30UH,Dvla,Environmental Services,Vehicle Licences,09/09/2015,30229,227.50
Lancaster City Council,30UH,Dvla,Environmental Services,Vehicle Licences,09/09/2015,30230,227.50
Lancaster City Council,30UH,Dvla,Environmental Services,Vehicle Licences,09/09/2015,30231,227.50
Lancaster City Council,30UH,Dvla,Environmental Services,Vehicle Licences,09/09/2015,30232,227.50
Lancaster City Council,30UH,Dvla,Regeneration and Planning,Vehicle Licences,09/09/2015,npc000808,280.25
Lancaster City Council,30UH,DW Sports Fitness,Health & Housing,Clothing & Uniforms,28/07/2015,bpc003065,143.95
Lancaster City Council,30UH,DW Sports Fitness,Health & Housing,Sundry Expenses,01/07/2015,bpc002955,316.87
Lancaster City Council,30UH,DW Sports Fitness,Health & Housing,Clothing & Uniforms,31/07/2015,bpc003124,168.94
Lancaster City Council,30UH,DWN Limited,Environmental Services,Materials - General,06/08/2015,29814,9.48
Lancaster City Council,30UH,Dynostart,Environmental Services,System Suspense Account    018,04/08/2015,29791,30.00
Lancaster City Council,30UH,Dynostart,Health & Housing,Equipment and Tools - General,13/07/2015,bpc002996,385.40
Lancaster City Council,30UH,Dynostart,Health & Housing,System Suspense Account    018,13/08/2015,bpc003157,20.99
Lancaster City Council,30UH,EBuyer,Health & Housing,IT Consumables,22/07/2015,spc001024,10.41
Lancaster City Council,30UH,EBuyer,Health & Housing,IT Consumables,22/07/2015,spc001023,23.73
Lancaster City Council,30UH,Early Learning Centre,Health & Housing,Equipment and Tools - General,20/07/2015,bpc003021,19.95
Lancaster City Council,30UH,Eastalnds Trust National Cycli,Health & Housing,Services - General,03/08/2015,bpc003129,266.67
Lancaster City Council,30UH,Eastland Trading,Environmental Services,Equipment and Tools - General,16/09/2015,30315,14.97
Lancaster City Council,30UH,Eastland Trading,Environmental Services,Materials For Resale,24/08/2015,30027,22.48
Lancaster City Council,30UH,Eastland Trading ,Environmental Services,Equipment and Tools - General,15/09/2015,30303,19.98
Lancaster City Council,30UH,Easy Garden Irrigation,Health & Housing,Equipment and Tools - General,13/07/2015,bpc002997,90.74
Lancaster City Council,30UH,EBuyer,Health & Housing,IT Consumables,23/07/2015,spc001030,11.35
Lancaster City Council,30UH,ECOTRICITY,Regeneration and Planning,Electricity,11/08/2015,npc000786,41.20
Lancaster City Council,30UH,ECOTRICITY,Regeneration and Planning,Electricity,09/09/2015,npc000806,45.24
Lancaster City Council,30UH,ECOTRICITY,Regeneration and Planning,Electricity,07/07/2015,npc000757,39.77
Lancaster City Council,30UH,EDWARD SPORTS,Environmental Services,Materials - General,05/08/2015,29806,369.11
Lancaster City Council,30UH,EKM Powershop,Regeneration and Planning,Software Purchase\Licences,03/07/2015,29352,29.98
Lancaster City Council,30UH,EKM Powershop,Regeneration and Planning,Software Purchase\Licences,27/07/2015,29626,29.98
Lancaster City Council,30UH,EKM Powershop,Regeneration and Planning,Software Purchase\Licences,03/09/2015,30177,29.98
Lancaster City Council,30UH,English Lakes Ice Cream,Regeneration and Planning,Catering Provisions,11/09/2015,npc000810,29.96
Lancaster City Council,30UH,E-ON,Health & Housing,Electricity,02/09/2015,hpc000268,40.64
Lancaster City Council,30UH,ESEDirect,Health & Housing,Equipment and Tools - General,02/07/2015,bpc002969,371.96
Lancaster City Council,30UH,Euroffice,Health & Housing,Other Cleaning,30/07/2015,bpc003088,31.58
Lancaster City Council,30UH,Europcar,Health & Housing,Sundry Expenses,17/08/2015,bpc003177,265.51
Lancaster City Council,30UH,F R Jones and Son,Environmental Services,Equipment and Tools - General,27/07/2015,29628,218.92
Lancaster City Council,30UH,Facebook,Health & Housing,Miscellaneous Advertising,01/07/2015,bpc002917,68.22
Lancaster City Council,30UH,Facebook,Regeneration and Planning,Miscellaneous Advertising,28/07/2015,npc000774,177.59
Lancaster City Council,30UH,Facebook,Regeneration and Planning,Miscellaneous Advertising,07/08/2015,npc000799,185.42
Lancaster City Council,30UH,Facebook,Regeneration and Planning,Miscellaneous Advertising,25/09/2015,npc000835,88.19
Lancaster City Council,30UH,FAST BATTERIES,Regeneration and Planning,Printing & Stationery,20/07/2015,npc000767,8.66
Lancaster City Council,30UH,Fast Key Services Ltd,Resources,Equipment and Tools - General,02/07/2015,ppc000307,5.62
Lancaster City Council,30UH,Fast Key Services Ltd,Resources,Equipment and Tools - General,24/07/2015,ppc000321,5.62
Lancaster City Council,30UH,Fastlane Couriers,Health & Housing,Sanctuary Scheme,17/08/2015,spc001065,11.17
Lancaster City Council,30UH,Fiddler`s Lancashire Crisps,Environmental Services,Materials For Resale,15/07/2015,29511,48.25
Lancaster City Council,30UH,Fiddler`s Lancashire Crisps,Environmental Services,Materials For Resale,21/08/2015,29989,428.46
Lancaster City Council,30UH,Fiddler`s Lancashire Crisps,Environmental Services,Materials For Resale,17/09/2015,30325,135.10
Lancaster City Council,30UH,First Aid 4 less,Health & Housing,Equipment and Tools - General,01/07/2015,bpc002919,61.59
Lancaster City Council,30UH,First Great Western,Health & Housing,Use Of Public Tpt - Officers,07/07/2015,bpc002976,110.80
Lancaster City Council,30UH,First TransPennine Express,Health & Housing,Use Of Public Tpt - Officers,24/08/2015,bpc003201,13.30
Lancaster City Council,30UH,First TransPennine Express,Resources,Use Of Public Tpt - Officers,05/08/2015,jpc000480,47.40
Lancaster City Council,30UH,Focus Training,Health & Housing,Service Training Budget,01/09/2015,bpc003246,3000.00
Lancaster City Council,30UH,Food Safety Direct,Health & Housing,Equipment and Tools - General,23/07/2015,spc001025,69.85
Lancaster City Council,30UH,Food Safety Direct,Health & Housing,Equipment and Tools - General,23/07/2015,spc001026,42.00
Lancaster City Council,30UH,FR Jones and Son,Environmental Services,Clothing & Uniforms,15/09/2015,30302,225.03
Lancaster City Council,30UH,FR Jones and Son ,Environmental Services,Materials - General,15/09/2015,30301,51.60
Lancaster City Council,30UH,Friis Shopping,Health & Housing,Sundry Expenses,17/08/2015,bpc003163,9.75
Lancaster City Council,30UH,Friis Shopping,Health & Housing,Sundry Expenses,17/08/2015,bpc003164,1.95
Lancaster City Council,30UH,Friis Shopping,Health & Housing,Sundry Expenses,17/08/2015,bpc003165,0.98
Lancaster City Council,30UH,Friis Shopping,Health & Housing,Sundry Expenses,17/08/2015,bpc003166,1.95
Lancaster City Council,30UH,Friis Shopping,Health & Housing,Sundry Expenses,17/08/2015,bpc003167,2.93
Lancaster City Council,30UH,Friis Shopping,Health & Housing,Sundry Expenses,17/08/2015,bpc003168,10.73
Lancaster City Council,30UH,Friis Shopping,Health & Housing,Sundry Expenses,17/08/2015,bpc003169,0.98
Lancaster City Council,30UH,Friis Shopping,Health & Housing,Sundry Expenses,17/08/2015,bpc003170,3.91
Lancaster City Council,30UH,Friis Shopping,Health & Housing,Sundry Expenses,17/08/2015,bpc003171,0.98
Lancaster City Council,30UH,Friis Shopping,Health & Housing,Sundry Expenses,17/08/2015,bpc003172,0.98
Lancaster City Council,30UH,Friis Shopping,Health & Housing,Sundry Expenses,17/08/2015,bpc003173,8.75
Lancaster City Council,30UH,Friis Shopping,Health & Housing,Sundry Expenses,17/08/2015,bpc003174,4.86
Lancaster City Council,30UH,Friis Shopping,Health & Housing,Sundry Expenses,17/08/2015,bpc003175,7.78
Lancaster City Council,30UH,Friis Shopping,Health & Housing,Sundry Expenses,17/08/2015,bpc003176,1.95
Lancaster City Council,30UH,fruitycables.co.uk,Resources,Infrastructure - Update & Maintenance,16/09/2015,jpc000502,125.34
Lancaster City Council,30UH,Furnitureatwork.co.uk,Health & Housing,Materials - General,16/07/2015,bpc003015,102.00
Lancaster City Council,30UH,garden-camping.com,Health & Housing,Equipment and Tools - General,10/08/2015,bpc003149,129.56
Lancaster City Council,30UH,Gateley Plc,Governance,Services - Consultants,09/09/2015,lpc000274,336.00
Lancaster City Council,30UH,GB Online Sales ,Regeneration and Planning,Office Equipment,29/07/2015,npc000776,7.06
Lancaster City Council,30UH,Gear4music.com,Health & Housing,Equipment and Tools - General,06/08/2015,bpc003144,768.19
Lancaster City Council,30UH,George Speight and Sons Ltd,Environmental Services,Materials - General,15/09/2015,30304,33.46
Lancaster City Council,30UH,George Speight and Sons Ltd,Environmental Services,Materials For Resale,15/09/2015,30304,848.59
Lancaster City Council,30UH,Gladstone Boots Ltd,Environmental Services,Protective Clothing,21/07/2015,29558,239.09
Lancaster City Council,30UH,Gladstone Boots Ltd,Environmental Services,Protective Clothing,23/07/2015,29587,-12.48
Lancaster City Council,30UH,Glasdon UK Limited,Environmental Services,System Suspense Account    018,06/08/2015,29809,203.20
Lancaster City Council,30UH,Glasdon UK Limited,Health & Housing,Equipment and Tools - General,02/07/2015,bpc002968,864.75
Lancaster City Council,30UH,GO2 TELECOM,Health & Housing,Equipment Funded by Reserves,02/09/2015,hpc000263,1124.95
Lancaster City Council,30UH,Google,Health & Housing,Miscellaneous Advertising,28/07/2015,bpc003057,57.55
Lancaster City Council,30UH,Google,Health & Housing,Miscellaneous Advertising,07/08/2015,bpc003195,50.00
Lancaster City Council,30UH,Google,Health & Housing,Miscellaneous Advertising,07/08/2015,bpc003289,28.47
Lancaster City Council,30UH,Greenman Bushcraft,Environmental Services,Equipment and Tools - General,15/07/2015,29500,63.96
Lancaster City Council,30UH,GROUNDSMAN,Environmental Services,Equipment and Tools - General,01/07/2015,29231,1766.13
Lancaster City Council,30UH,GTech,Health & Housing,Cleaning Materials,31/07/2015,bpc003116,509.44
Lancaster City Council,30UH,Gymnastics Enterprises Ltd,Health & Housing,Materials For Resale,30/07/2015,bpc003093,482.02
Lancaster City Council,30UH,Gymnastics Enterprises Ltd,Health & Housing,Materials For Resale,03/08/2015,bpc003130,655.09
Lancaster City Council,30UH,Haahr Benzin,Health & Housing,Sundry Expenses,01/07/2015,bpc002958,20.60
Lancaster City Council,30UH,Haahr Benzin,Health & Housing,Sundry Expenses,17/08/2015,bpc003178,17.06
Lancaster City Council,30UH,Hala Pet Stores,Environmental Services,Materials - General,09/09/2015,30241,89.84
Lancaster City Council,30UH,Hampshire Flag Company,Health & Housing,Equipment and Tools - General,14/07/2015,bpc003002,326.00
Lancaster City Council,30UH,Harrison`s Packaging LTD,Environmental Services,Grounds Maintenance - Other,09/09/2015,30242,197.94
Lancaster City Council,30UH,Harrison`s Packaging Ltd,Environmental Services,Materials For Resale,21/08/2015,29988,28.00
Lancaster City Council,30UH,Hartley Hire,Health & Housing,Materials - General,31/07/2015,spc001046,67.90
Lancaster City Council,30UH,HCS,Regeneration and Planning,Cleaning Materials,01/07/2015,npc000752,142.26
Lancaster City Council,30UH,HCS,Regeneration and Planning,Cleaning Materials,06/08/2015,npc000781,230.86
Lancaster City Council,30UH,HCS,Health & Housing,Cleansing Equipment,01/07/2015,bpc002931,54.76
Lancaster City Council,30UH,HCS,Health & Housing,Cleansing Equipment,31/07/2015,bpc003102,54.76
Lancaster City Council,30UH,HCS,Health & Housing,Cleansing Equipment,24/08/2015,bpc003210,174.45
Lancaster City Council,30UH,HCS,Environmental Services,R & M - Buildings,17/09/2015,30339,599.37
Lancaster City Council,30UH,HCS,Environmental Services,R & M - Buildings,17/09/2015,30340,-599.37
Lancaster City Council,30UH,Hemming Group Limited,Management Team,Books & Periodicals,01/09/2015,mpc000041,42.00
Lancaster City Council,30UH,Hill View Hotel,Health & Housing,Homelessness Priority Need Order,31/07/2015,spc001040,220.00
Lancaster City Council,30UH,Hill View Hotel,Health & Housing,Homelessness Priority Need Order,31/07/2015,spc001041,110.00
Lancaster City Council,30UH,Hinckley Island Hotel,Governance,Software HR/Payroll - Aurora,20/08/2015,lpc000263,176.00
Lancaster City Council,30UH,HMS Host,Health & Housing,Sundry Expenses,06/08/2015,spc001050,12.02
Lancaster City Council,30UH,hms host amsterdam,Health & Housing,Sundry Expenses,01/07/2015,bpc002959,8.26
Lancaster City Council,30UH,Home Bargains,Health & Housing,Equipment and Tools - General,27/07/2015,bpc003041,21.59
Lancaster City Council,30UH,Homebase,Regeneration and Planning,Hire Of Equipment,14/09/2015,npc000812,2.76
Lancaster City Council,30UH,Hootsuite,Health & Housing,Marketing,05/08/2015,bpc003141,4.74
Lancaster City Council,30UH,Hootsuite,Regeneration and Planning,Marketing,07/08/2015,npc000804,4.76
Lancaster City Council,30UH,Hootsuite,Health & Housing,Miscellaneous Advertising,01/07/2015,bpc002970,4.86
Lancaster City Council,30UH,Houghtons,Regeneration and Planning,Exhibitions & Events,17/07/2015,npc000761,7.69
Lancaster City Council,30UH,House of Marbles,Regeneration and Planning,Materials For Resale,14/07/2015,29713,244.95
Lancaster City Council,30UH,HOUSEMARK,Health & Housing,Service Training Budget,06/07/2015,hpc000240,249.00
Lancaster City Council,30UH,HSE BOOKS,Environmental Services,Materials - General,07/08/2015,29991,45.00
Lancaster City Council,30UH,Hygiene Cleaning Supplies Ltd,Resources,Cleaning Materials,18/08/2015,ppc000336,147.02
Lancaster City Council,30UH,Hygiene Cleaning Supplies Ltd,Resources,Cleaning Materials,16/09/2015,ppc000346,358.70
Lancaster City Council,30UH,Hygiene Cleaning Supplies Ltd,Environmental Services,Cleaning Materials,14/07/2015,29816,166.88
Lancaster City Council,30UH,Hygiene Cleaning Supplies Ltd,Resources,Cleaning Materials,21/07/2015,ppc000319,365.60
Lancaster City Council,30UH,Hygiene Cleaning Supplies Ltd,Resources,Cleaning Materials,29/07/2015,ppc000329,75.90
Lancaster City Council,30UH,Hygiene Cleaning Supplies Ltd,Resources,Cleaning Materials,21/08/2015,ppc000339,124.12
Lancaster City Council,30UH,Hygiene Cleaning Supplies Ltd,Resources,Cleaning Materials,21/08/2015,ppc000340,11.95
Lancaster City Council,30UH,Hygiene Cleaning Supplies Ltd,Resources,Cleaning Materials,14/09/2015,ppc000345,75.90
Lancaster City Council,30UH,Hygiene Cleaning Supplies Ltd,Resources,Cleaning Materials,21/09/2015,ppc000349,280.38
Lancaster City Council,30UH,Hygiene Cleaning Supplies Ltd,Environmental Services,Equipment and Tools - General,09/07/2015,29427,62.06
Lancaster City Council,30UH,Hygiene Cleaning Supplies Ltd,Health & Housing,Materials - General,29/07/2015,spc001037,29.41
Lancaster City Council,30UH,Hygiene Cleaning Supplies Ltd,Environmental Services,Services - Trade Refuse,14/07/2015,29815,219.00
Lancaster City Council,30UH,ILSH Media Ltd,Governance,Employee Related Advertising,26/08/2015,lpc000268,98.20
Lancaster City Council,30UH,ImageOn Ltd,Regeneration and Planning,Materials For Resale,07/07/2015,29404,67.16
Lancaster City Council,30UH,Information Commissioner,Governance,Miscellaneous Licences,01/07/2015,dpc000304,35.00
Lancaster City Council,30UH,Instantprint,Regeneration and Planning,Marketing,07/08/2015,npc000803,124.16
Lancaster City Council,30UH,Instantprint,Regeneration and Planning,Marketing,28/09/2015,npc000839,152.50
Lancaster City Council,30UH,Instantprint,Regeneration and Planning,Marketing,28/09/2015,npc000840,16.67
Lancaster City Council,30UH,Instantprint,Regeneration and Planning,Marketing,30/09/2015,npc000841,265.00
Lancaster City Council,30UH,instantprint,Regeneration and Planning,Printing & Stationery,25/08/2015,30051,149.17
Lancaster City Council,30UH,instantprint,Regeneration and Planning,Printing & Stationery,25/08/2015,30053,-149.17
Lancaster City Council,30UH,instantprint,Regeneration and Planning,Printing & Stationery,25/08/2015,30054,84.00
Lancaster City Council,30UH,Instantprint,Regeneration and Planning,Printing & Stationery,06/07/2015,29377,79.33
Lancaster City Council,30UH,Instantprint,Regeneration and Planning,Printing & Stationery,27/07/2015,29625,26.32
Lancaster City Council,30UH,Instantprint,Regeneration and Planning,Printing & Stationery,03/09/2015,30175,15.82
Lancaster City Council,30UH,Instantprint,Regeneration and Planning,Printing & Stationery,03/09/2015,30176,66.00
Lancaster City Council,30UH,Instantprint,Regeneration and Planning,Printing & Stationery,03/09/2015,30178,90.83
Lancaster City Council,30UH,Institute of Licensing,Governance,Service Training Budget,24/07/2015,lpc000260,645.00
Lancaster City Council,30UH,Institute of Swimming,Health & Housing,Service Training Budget,20/07/2015,bpc003033,680.00
Lancaster City Council,30UH,Instantprint,Regeneration and Planning,Marketing,12/08/2015,npc000788,79.00
Lancaster City Council,30UH,Interflora,Health & Housing,Equipment and Tools - General,28/08/2015,bpc003235,34.97
Lancaster City Council,30UH,Isle of Man Steam Packet,Regeneration and Planning,Sea-Cat Sales,14/08/2015,29895,163.61
Lancaster City Council,30UH,Isle of Man Steam Packet,Regeneration and Planning,Sea-Cat Sales,14/08/2015,29896,170.67
Lancaster City Council,30UH,Isle of Man Steampacket,Regeneration and Planning,Sea-Cat Sales,08/09/2015,30216,775.19
Lancaster City Council,30UH,ISS Facility Services ,Environmental Services,Insurance Excess,04/08/2015,29783,0.00
Lancaster City Council,30UH,J Atkinson and Co,Health & Housing,Materials For Resale,30/07/2015,bpc003095,90.40
Lancaster City Council,30UH,J Atkinson and Co,Health & Housing,Materials For Resale,03/08/2015,bpc003133,161.46
Lancaster City Council,30UH,J Atkinson and Co,Health & Housing,Materials For Resale,04/09/2015,bpc003282,105.90
Lancaster City Council,30UH,J Atkinson and Co,Regeneration and Planning,Catering Provisions,13/08/2015,npc000789,34.16
Lancaster City Council,30UH,J Atkinson and Co,Environmental Services,Materials For Resale,01/07/2015,29245,154.42
Lancaster City Council,30UH,J Salmon,Regeneration and Planning,Materials For Resale,03/09/2015,30168,52.40
Lancaster City Council,30UH,J Atkinson and Co,Health & Housing,Materials For Resale,20/07/2015,bpc003027,84.90
Lancaster City Council,30UH,J Atkinson and Co,Health & Housing,Cleaning Materials,20/07/2015,bpc003026,7.78
Lancaster City Council,30UH,J Atkinson and Co,Health & Housing,Materials For Resale,20/07/2015,bpc003026,125.48
Lancaster City Council,30UH,J Atkinson and Co,Environmental Services,Exhibitions & Events,13/07/2015,29465,6.67
Lancaster City Council,30UH,J Atkinson and Co,Environmental Services,Materials For Resale,14/08/2015,29911,537.86
Lancaster City Council,30UH,Jancro Cinema ,Health & Housing,Services - General,02/09/2015,bpc003255,40.05
Lancaster City Council,30UH,JMP,Environmental Services,Exhibitions & Events,15/07/2015,29512,49.94
Lancaster City Council,30UH,JMP,Environmental Services,Exhibitions & Events,14/08/2015,29905,141.92
Lancaster City Council,30UH,JMP,Environmental Services,Materials For Resale,15/07/2015,29512,623.91
Lancaster City Council,30UH,JMP,Environmental Services,Materials For Resale,14/08/2015,29905,681.59
Lancaster City Council,30UH,JMP,Environmental Services,Materials For Resale,02/09/2015,30154,1035.91
Lancaster City Council,30UH,Johnston Press,Resources,Printing & Stationery,14/09/2015,fpc000126,382.75
Lancaster City Council,30UH,Johnstones,Environmental Services,R & M - Buildings,01/07/2015,29251,144.55
Lancaster City Council,30UH,JP Lennard,Health & Housing,Equipment and Tools - General,21/09/2015,bpc003305,13.06
Lancaster City Council,30UH,JP Lennard,Health & Housing,Materials For Resale,21/09/2015,bpc003306,13.06
Lancaster City Council,30UH,"Judd & Jenkins Hotels, Lon",Health & Housing,Service Training Budget,14/07/2015,spc001019,119.00
Lancaster City Council,30UH,Kalamazoo Secure Solutions Ltd,Health & Housing,Printing & Stationery,13/08/2015,bpc003199,311.95
Lancaster City Council,30UH,Karrimor,Environmental Services,Clothing & Uniforms,27/07/2015,29643,105.80
Lancaster City Council,30UH,KC Inks,Governance,IT Consumables,01/09/2015,dpc000313,39.50
Lancaster City Council,30UH,Keycraft Ltd,Environmental Services,Materials For Resale,15/07/2015,29513,645.98
Lancaster City Council,30UH,Keycraft Ltd,Environmental Services,Materials For Resale,09/09/2015,30238,637.82
Lancaster City Council,30UH,Keycraft Ltd,Environmental Services,Materials For Resale,27/07/2015,29634,730.34
Lancaster City Council,30UH,Keycraft Ltd,Environmental Services,Materials For Resale,21/09/2015,30353,247.40
Lancaster City Council,30UH,Keyline Builders Merchants Lim,Health & Housing,Materials - General,11/08/2015,spc001057,22.67
Lancaster City Council,30UH,Keysoft Solutions,Regeneration and Planning,Software Purchase\Licences,14/08/2015,npc000790,440.00
Lancaster City Council,30UH,Keysoft Solutions,Regeneration and Planning,Software Purchase\Licences,30/09/2015,npc000842,289.00
Lancaster City Council,30UH,Killgerm Chemicals Ltd,Health & Housing,Materials - General,02/07/2015,spc001011,63.16
Lancaster City Council,30UH,Killgerm Chemicals Ltd,Health & Housing,Materials - General,12/08/2015,spc001059,595.74
Lancaster City Council,30UH,Killgerm Chemicals Ltd,Health & Housing,Materials - General,12/08/2015,spc001060,749.56
Lancaster City Council,30UH,Killgerm Chemicals Ltd,Health & Housing,Materials - General,17/08/2015,spc001061,4.40
Lancaster City Council,30UH,Killgerm Chemicals Ltd,Health & Housing,Materials - General,09/09/2015,spc001095,102.64
Lancaster City Council,30UH,Knowsley Safari Park,Health & Housing,Services - General,30/07/2015,bpc003085,106.00
Lancaster City Council,30UH,LABELPLANET,Regeneration and Planning,Printing & Stationery,23/09/2015,npc000825,13.25
Lancaster City Council,30UH,LADDERSTORE,Environmental Services,Equipment and Tools - General,13/08/2015,29891,39.99
Lancaster City Council,30UH,Lancashire County Cricket Club,Health & Housing,Service Training Budget,29/09/2015,bpc003334,4.17
Lancaster City Council,30UH,Lancaster Brewery,Environmental Services,Materials For Resale,15/07/2015,29508,270.00
Lancaster City Council,30UH,Lancaster Brewery,Environmental Services,Materials For Resale,14/08/2015,29907,263.75
Lancaster City Council,30UH,Lancaster Brewery,Environmental Services,Materials For Resale,09/09/2015,30244,370.00
Lancaster City Council,30UH,Land Registry,Resources,Legal & Court Costs,06/08/2015,rpc000067,3.00
Lancaster City Council,30UH,Land Registry,Resources,Legal & Court Costs,24/08/2015,rpc000068,3.00
Lancaster City Council,30UH,Land Registry,Health & Housing,Marketing,07/08/2015,bpc003197,15.00
Lancaster City Council,30UH,Lathams,Environmental Services,Materials For Resale,15/07/2015,29506,959.91
Lancaster City Council,30UH,Lathams,Environmental Services,Materials For Resale,02/09/2015,30152,2024.20
Lancaster City Council,30UH,Lathams,Environmental Services,Materials For Resale,03/09/2015,30158,1130.36
Lancaster City Council,30UH,LCR Systems,Regeneration and Planning,Office Equipment,14/08/2015,29898,5830.00
Lancaster City Council,30UH,Lees Games,Health & Housing,Services - General,18/08/2015,bpc003188,45.00
Lancaster City Council,30UH,Lees Games,Health & Housing,Services - General,25/08/2015,bpc003224,28.00
Lancaster City Council,30UH,Les Mills Fitness,Health & Housing,Service Training Budget,01/07/2015,bpc002949,265.00
Lancaster City Council,30UH,Lidl,Health & Housing,Sundry Expenses,17/08/2015,bpc003179,57.93
Lancaster City Council,30UH,Lidl,Health & Housing,Sundry Expenses,02/09/2015,bpc003257,168.20
Lancaster City Council,30UH,Lifesavers Direct,Health & Housing,Service Training Budget,15/07/2015,bpc003005,91.00
Lancaster City Council,30UH,Lloyds Bank Commercial Finance,Environmental Services,Contract Maintenance,27/07/2015,29635,170.00
Lancaster City Council,30UH,LOCKS EXPRESS,Regeneration and Planning,Equipment and Tools - General,09/09/2015,npc000809,201.60
Lancaster City Council,30UH,LOCO ENERGY,Health & Housing,Electricity,06/07/2015,hpc000234,23.81
Lancaster City Council,30UH,London Pupae Supplies,Environmental Services,Materials - General,24/08/2015,30026,414.10
Lancaster City Council,30UH,London Underground,Health & Housing,Service Training Budget,15/07/2015,spc001021,12.00
Lancaster City Council,30UH,London Underground,Health & Housing,Use Of Public Tpt - Officers,03/09/2015,spc001089,12.00
Lancaster City Council,30UH,Lothersdale Hotel,Regeneration and Planning,Exhibitions & Events - Expenses,14/09/2015,npc000814,29.17
Lancaster City Council,30UH,Lyreco,Resources,Corporate Safety,19/08/2015,ppc000337,225.00
Lancaster City Council,30UH,Lyreco,Governance,IT Consumables,01/09/2015,dpc000312,46.28
Lancaster City Council,30UH,Lyreco,Environmental Services,Printing & Stationery,27/07/2015,29630,87.30
Lancaster City Council,30UH,Lyreco,Environmental Services,Printing & Stationery,04/08/2015,29792,142.73
Lancaster City Council,30UH,Lyreco,Environmental Services,Printing & Stationery,24/08/2015,30025,33.58
Lancaster City Council,30UH,Lyreco,Environmental Services,Printing & Stationery,24/09/2015,30423,141.46
Lancaster City Council,30UH,Lyreco,Resources,Printing & Stationery,01/07/2015,fpc000114,23.24
Lancaster City Council,30UH,Lyreco,Resources,Printing & Stationery,01/07/2015,fpc000116,131.99
Lancaster City Council,30UH,Lyreco,Resources,Printing & Stationery,14/09/2015,fpc000128,29.75
Lancaster City Council,30UH,Lyreco,Governance,Printing & Stationery,09/09/2015,lpc000272,5.98
Lancaster City Council,30UH,Lyreco,Governance,Printing & Stationery,22/09/2015,lpc000280,7.59
Lancaster City Council,30UH,Lyreco,Resources,Printing & Stationery,14/09/2015,jpc000498,117.83
Lancaster City Council,30UH,Lyreco,Management Team,Printing & Stationery,20/08/2015,mpc000040,3.58
Lancaster City Council,30UH,Lyreco,Resources,Printing & Stationery,09/09/2015,ppc000344,17.95
Lancaster City Council,30UH,Lyreco ,Health & Housing,Printing & Stationery,11/08/2015,bpc003151,214.44
Lancaster City Council,30UH,Lyreco ,Health & Housing,Printing & Stationery,01/07/2015,bpc002926,242.68
Lancaster City Council,30UH,Lyreco ,Health & Housing,Printing & Stationery,09/07/2015,bpc002986,39.95
Lancaster City Council,30UH,Lyreco ,Governance,Printing & Stationery,07/07/2015,dpc000306,86.30
Lancaster City Council,30UH,Lyreco ,Resources,Printing & Stationery,28/09/2015,fpc000137,78.16
Lancaster City Council,30UH,Lyreco ,Regeneration and Planning,Printing & Stationery,20/07/2015,npc000764,29.67
Lancaster City Council,30UH,Lyreco ,Health & Housing,Materials - General,02/09/2015,bpc003254,43.89
Lancaster City Council,30UH,M & S,Health & Housing,Tenants Participation,01/09/2015,hpc000258,20.00
Lancaster City Council,30UH,M D Hanafin,Regeneration and Planning,Management Plan Projects,23/09/2015,npc000826,29.50
Lancaster City Council,30UH,Manchester United FC,Health & Housing,Services - General,28/07/2015,bpc003055,102.96
Lancaster City Council,30UH,M & S,Environmental Services,Subsistence,01/07/2015,29318,7.95
Lancaster City Council,30UH,M & S,Governance,Catering Provisions,17/09/2015,dpc000316,8.00
Lancaster City Council,30UH,M & S,Governance,Member - Training,10/07/2015,dpc000308,3.60
Lancaster City Council,30UH,M & S,Governance,Member - Training,20/08/2015,dpc000311,11.70
Lancaster City Council,30UH,M & S,Resources,Member - Training,09/07/2015,ppc000311,32.30
Lancaster City Council,30UH,Marston Books Services Ltd,Regeneration and Planning,Materials For Resale,31/07/2015,29761,105.00
Lancaster City Council,30UH,matalan,Health & Housing,Clothing & Uniforms,25/09/2015,bpc003326,35.00
Lancaster City Council,30UH,Maudesport.com,Health & Housing,Services - General,20/07/2015,bpc003036,87.47
Lancaster City Council,30UH,MBi,Resources,Infrastructure - Update & Maintenance,15/09/2015,jpc000500,980.00
Lancaster City Council,30UH,MBL,Governance,Service Training Budget,24/09/2015,lpc000282,120.00
Lancaster City Council,30UH,McDonalds,Health & Housing,Sundry Expenses,17/08/2015,bpc003182,1.83
Lancaster City Council,30UH,Megabus,Health & Housing,Homelessness Priority Need Order,10/08/2015,spc001055,15.50
Lancaster City Council,30UH,Metrolink,Health & Housing,Services - Civil Contingencies,02/07/2015,spc001009,3.80
Lancaster City Council,30UH,Mhanna Libanesisk Restaurant A,Health & Housing,Sundry Expenses,25/08/2015,bpc003227,184.08
Lancaster City Council,30UH,Microsoft,Health & Housing,IT Consumables,11/09/2015,spc001102,41.66
Lancaster City Council,30UH,Microsoft,Health & Housing,IT Consumables,11/09/2015,spc001103,-41.66
Lancaster City Council,30UH,Midland Expressway,Health & Housing,Service Training Budget,24/09/2015,bpc003325,4.58
Lancaster City Council,30UH,Midland Expressway,Health & Housing,Services - General,01/07/2015,bpc002954,9.17
Lancaster City Council,30UH,Midland Expressway,Governance,Software HR/Payroll - Aurora,22/07/2015,lpc000258,4.58
Lancaster City Council,30UH,Midland Expressway,Governance,Software HR/Payroll - Aurora,22/07/2015,lpc000259,4.58
Lancaster City Council,30UH,Milly Green Designs Ltd,Regeneration and Planning,Materials For Resale,18/08/2015,29955,570.36
Lancaster City Council,30UH,MOBILE FUN,Environmental Services,Equipment and Tools - General,18/09/2015,30343,9.98
Lancaster City Council,30UH,Morecambe Superbowl,Health & Housing,Services - General,28/07/2015,bpc003062,816.67
Lancaster City Council,30UH,Morplan,Regeneration and Planning,Equipment and Tools - General,01/07/2015,29292,25.05
Lancaster City Council,30UH,Morplan,Regeneration and Planning,Services - General,01/07/2015,npc000748,195.10
Lancaster City Council,30UH,Morplan,Regeneration and Planning,Services - General,01/07/2015,npc000749,12.95
Lancaster City Council,30UH,Morplan,Regeneration and Planning,Services - General,10/07/2015,npc000760,13.50
Lancaster City Council,30UH,Morrison Supermarket,Regeneration and Planning,Bar Supplies,28/07/2015,npc000773,55.16
Lancaster City Council,30UH,Morrisons Supermarket,Regeneration and Planning,Bar Supplies,14/09/2015,npc000811,347.93
Lancaster City Council,30UH,Morrisons Supermarket,Regeneration and Planning,Catering Provisions,17/09/2015,npc000821,7.20
Lancaster City Council,30UH,Morrisons Supermarket,Regeneration and Planning,Conferences & Seminars,28/09/2015,npc000838,28.96
Lancaster City Council,30UH,Morrisons Supermarket,Regeneration and Planning,Exhibitions & Events - Expenses,07/08/2015,npc000784,18.01
Lancaster City Council,30UH,Morrisons Supermarket,Environmental Services,Hospitality,14/07/2015,29827,2.48
Lancaster City Council,30UH,Morrisons Supermarket,Regeneration and Planning,Bar Supplies,28/07/2015,npc000771,8.65
Lancaster City Council,30UH,Morrisons Supermarket,Regeneration and Planning,Bar Supplies,28/07/2015,npc000772,49.00
Lancaster City Council,30UH,Morrisons Supermarket,Regeneration and Planning,Catering Provisions,03/07/2015,npc000754,5.63
Lancaster City Council,30UH,Morrisons Supermarket,Regeneration and Planning,Exhibitions & Events - Expenses,14/08/2015,npc000792,1.78
Lancaster City Council,30UH,Morrisons Supermarket,Health & Housing,Materials - General,30/09/2015,bpc003338,16.67
Lancaster City Council,30UH,Morrisons Supermarket,Health & Housing,Printing & Stationery,30/09/2015,bpc003340,2.50
Lancaster City Council,30UH,MOTION PICTURE CORPORATION,Health & Housing,Printing & Stationery,02/09/2015,hpc000264,1045.80
Lancaster City Council,30UH,Namesco,Regeneration and Planning,Internet Provision,27/07/2015,29627,24.00
Lancaster City Council,30UH,Namesco,Regeneration and Planning,Software Purchase\Licences,03/07/2015,29353,13.99
Lancaster City Council,30UH,Nando`s Gatwick,Health & Housing,Sundry Expenses,02/09/2015,bpc003258,36.67
Lancaster City Council,30UH,National Express,Regeneration and Planning,National Express,07/09/2015,30212,614.24
Lancaster City Council,30UH,National Express,Regeneration and Planning,National Express,14/09/2015,npc000815,115.08
Lancaster City Council,30UH,National Rail,Resources,Use Of Public Tpt - Officers,04/09/2015,fpc000123,17.60
Lancaster City Council,30UH,National Shower Spares,Health & Housing,Materials - General,22/09/2015,spc001111,18.88
Lancaster City Council,30UH,National Trust Sizergh Castle ,Regeneration and Planning,AONB Executive Support,25/09/2015,npc000833,50.00
Lancaster City Council,30UH,newitts.com,Health & Housing,Equipment and Tools - General,17/09/2015,bpc003301,17.50
Lancaster City Council,30UH,Next,Health & Housing,Clothing & Uniforms,01/09/2015,bpc003249,95.00
Lancaster City Council,30UH,NHBS Ltd,Environmental Services,Equipment and Tools - General,04/08/2015,29782,260.93
Lancaster City Council,30UH,NHBS Ltd,Environmental Services,Equipment and Tools - General,06/08/2015,29808,17.49
Lancaster City Council,30UH,NICE,Health & Housing,Services - General,04/08/2015,bpc003136,4.50
Lancaster City Council,30UH,NICE,Health & Housing,Services - General,04/08/2015,bpc003137,4.05
Lancaster City Council,30UH,NICE,Regeneration and Planning,Hospitality,27/07/2015,29624,12.00
Lancaster City Council,30UH,NICE,Health & Housing,Services - General,11/09/2015,bpc003296,10.00
Lancaster City Council,30UH,NICEIC DIRECT,Environmental Services,Materials - General,05/08/2015,29807,504.60
Lancaster City Council,30UH,NIF Telecoms,Resources,Telephones,07/09/2015,ppc000342,58.33
Lancaster City Council,30UH,NIF Telecoms,Resources,Telephones,09/09/2015,ppc000343,29.17
Lancaster City Council,30UH,Nisbets,Health & Housing,Equipment and Tools - General,31/07/2015,bpc003115,21.52
Lancaster City Council,30UH,Nisbets,Environmental Services,Equipment and Tools - General,01/07/2015,29257,20.97
Lancaster City Council,30UH,Nisbets,Environmental Services,Equipment and Tools - General,27/07/2015,29629,175.99
Lancaster City Council,30UH,Nisbets,Environmental Services,Equipment and Tools - General,27/07/2015,29631,299.98
Lancaster City Council,30UH,Nisbets,Environmental Services,Equipment and Tools - General,24/08/2015,30021,-109.99
Lancaster City Council,30UH,Nisbets,Environmental Services,Equipment and Tools - General,17/09/2015,30330,12.96
Lancaster City Council,30UH,Nisbets,Environmental Services,Equipment and Tools - General,24/09/2015,30421,655.95
Lancaster City Council,30UH,Nisbets,Health & Housing,Materials - General,28/07/2015,bpc003063,19.39
Lancaster City Council,30UH,Northern Rail,Health & Housing,Service Training Budget,11/08/2015,spc001056,98.30
Lancaster City Council,30UH,Northern Rail,Health & Housing,Service Training Budget,11/09/2015,spc001101,65.90
Lancaster City Council,30UH,Northern Rail,Health & Housing,Equipment and Tools - General,08/07/2015,spc001014,58.55
Lancaster City Council,30UH,Northern Rail,Health & Housing,IT Consumables,08/07/2015,spc001015,31.60
Lancaster City Council,30UH,Northern Rail,Health & Housing,Use Of Public Tpt - Officers,04/08/2015,bpc003139,3.40
Lancaster City Council,30UH,Northern Rail,Health & Housing,Use Of Public Tpt - Officers,04/08/2015,bpc003134,3.40
Lancaster City Council,30UH,Northern Rail,Governance,Use Of Public Tpt - Officers,07/07/2015,dpc000305,29.60
Lancaster City Council,30UH,Northern Rail,Resources,Use Of Public Tpt - Officers,16/09/2015,jpc000501,5.80
Lancaster City Council,30UH,Northern Rail,Health & Housing,Use Of Public Tpt - Officers,07/07/2015,bpc002975,22.80
Lancaster City Council,30UH,Notice Board Company,Environmental Services,Capital Payments To Contractors,02/07/2015,29332,-1800.00
Lancaster City Council,30UH,NWRA of Occupational Health &a,Environmental Services,Service Training Budget,21/08/2015,29977,168.00
Lancaster City Council,30UH,Ofcom,Health & Housing,Miscellaneous Licences,21/09/2015,bpc003304,75.00
Lancaster City Council,30UH,Office Coffee Company,Resources,Catering Provisions,29/07/2015,ppc000328,312.69
Lancaster City Council,30UH,Office Depot,Environmental Services,Printing & Stationery,24/08/2015,30028,150.46
Lancaster City Council,30UH,Office Depot,Environmental Services,Printing & Stationery,16/09/2015,30314,49.38
Lancaster City Council,30UH,OVO Energy,Environmental Services,Capital Payments To Contractors,21/08/2015,29987,325.13
Lancaster City Council,30UH,Pallettruck Warehouse,Health & Housing,Equipment and Tools - General,04/09/2015,bpc003281,187.00
Lancaster City Council,30UH,Papo UK Ltd,Regeneration and Planning,Materials For Resale,14/07/2015,29480,578.06
Lancaster City Council,30UH,Patterson Mediacl Ltd,Health & Housing,Equipment and Tools - General,18/08/2015,spc001072,110.79
Lancaster City Council,30UH,PayPal,Health & Housing,Printing & Stationery,01/07/2015,bpc002928,1.00
Lancaster City Council,30UH,Paypoint,Regeneration and Planning,Services - General,14/07/2015,29657,6.07
Lancaster City Council,30UH,Paypoint,Regeneration and Planning,Services - General,24/08/2015,30008,1.69
Lancaster City Council,30UH,Paypoint,Regeneration and Planning,Services - General,03/09/2015,30172,24.95
Lancaster City Council,30UH,Paypoint,Regeneration and Planning,Software Purchase\Licences,14/07/2015,29657,10.00
Lancaster City Council,30UH,Paypoint,Regeneration and Planning,Software Purchase\Licences,24/08/2015,30008,10.00
Lancaster City Council,30UH,Paypoint,Regeneration and Planning,Software Purchase\Licences,03/09/2015,30172,10.00
Lancaster City Council,30UH,Peli Products (UK) Ltd,Health & Housing,Equipment and Tools - General,04/09/2015,spc001092,107.99
Lancaster City Council,30UH,Peregrine Livefoods Ltd,Environmental Services,Materials - General,01/07/2015,29289,26.68
Lancaster City Council,30UH,Peregrine Livefoods Ltd,Environmental Services,Materials - General,24/08/2015,30024,59.85
Lancaster City Council,30UH,Peregrine Livefoods Ltd,Environmental Services,Materials - General,27/07/2015,29636,26.68
Lancaster City Council,30UH,Peregrine Livefoods Ltd,Environmental Services,Materials - General,27/07/2015,29640,37.72
Lancaster City Council,30UH,Peregrine Livefoods Ltd,Environmental Services,Materials - General,27/07/2015,29644,24.42
Lancaster City Council,30UH,Peregrine Livefoods Ltd,Environmental Services,Materials - General,15/09/2015,30298,57.53
Lancaster City Council,30UH,Peregrine Livefoods Ltd,Environmental Services,Materials - General,15/09/2015,30299,42.44
Lancaster City Council,30UH,Physical Company,Health & Housing,Equipment and Tools - General,02/09/2015,bpc003266,2483.30
Lancaster City Council,30UH,Piloxing Academy,Health & Housing,Service Training Budget,14/07/2015,bpc003004,13.65
Lancaster City Council,30UH,Piloxing Academy,Health & Housing,Service Training Budget,26/08/2015,bpc003231,13.82
Lancaster City Council,30UH,Piloxing Academy,Health & Housing,Service Training Budget,03/09/2015,bpc003277,16.76
Lancaster City Council,30UH,PKE Lighting,Regeneration and Planning,Equipment and Tools - General,07/07/2015,npc000756,100.00
Lancaster City Council,30UH,Planglow,Health & Housing,Materials - General,29/07/2015,bpc003068,97.15
Lancaster City Council,30UH,PLASTIC SHEETS.Com,Environmental Services,Materials - General,02/07/2015,29334,353.87
Lancaster City Council,30UH,Pondkeeper,Environmental Services,Equipment and Tools - General,27/07/2015,29641,70.82
Lancaster City Council,30UH,PoolMarket.co.uk,Health & Housing,Services - General,20/07/2015,bpc003034,26.57
Lancaster City Council,30UH,Posnpack,Health & Housing,Printing & Stationery,13/07/2015,bpc002991,108.99
Lancaster City Council,30UH,Post Office,Health & Housing,Equipment and Tools - General,10/09/2015,spc001096,8.25
Lancaster City Council,30UH,Post Office,Environmental Services,Materials - General,09/07/2015,29432,7.25
Lancaster City Council,30UH,Post Office,Environmental Services,Materials - General,23/09/2015,30414,9.29
Lancaster City Council,30UH,Post Office,Resources,Postage (Internal),10/07/2015,ppc000312,78.33
Lancaster City Council,30UH,Post Office,Health & Housing,Printing & Stationery,24/09/2015,spc001125,31.50
Lancaster City Council,30UH,Post Office,Regeneration and Planning,Printing & Stationery,19/08/2015,npc000795,17.01
Lancaster City Council,30UH,Post Office,Environmental Services,Printing & Stationery,03/07/2015,29354,19.28
Lancaster City Council,30UH,Post Office,Environmental Services,Security Services,04/08/2015,29795,61.24
Lancaster City Council,30UH,Post Office,Health & Housing,Services - General,28/07/2015,spc001036,0.63
Lancaster City Council,30UH,Post Office,Health & Housing,Services - General,25/08/2015,spc001079,0.63
Lancaster City Council,30UH,Post Office,Health & Housing,Materials - General,30/07/2015,bpc003083,2.36
Lancaster City Council,30UH,Post Office,Environmental Services,Postage (Internal),25/08/2015,30058,6.45
Lancaster City Council,30UH,Post Office,Environmental Services,Postage (Internal),26/08/2015,30072,6.45
Lancaster City Council,30UH,Post Office,Resources,Postage (Internal),09/07/2015,ppc000310,63.81
Lancaster City Council,30UH,Post Office,Resources,Postage (Internal),13/07/2015,ppc000313,64.33
Lancaster City Council,30UH,Post Office,Resources,Postage (Internal),14/07/2015,ppc000314,59.70
Lancaster City Council,30UH,Post Office,Resources,Postage (Internal),22/09/2015,ppc000350,4.10
Lancaster City Council,30UH,Post Office,Resources,Postage (Internal),22/09/2015,ppc000351,11.08
Lancaster City Council,30UH,Post Office,Resources,Postages,13/07/2015,ppc000313,26.52
Lancaster City Council,30UH,Post Office,Health & Housing,System Suspense Account    018,24/08/2015,bpc003220,2.36
Lancaster City Council,30UH,Post Office,Environmental Services,Security Services,14/08/2015,29902,9.34
Lancaster City Council,30UH,Post Office,Environmental Services,Security Services,30/07/2015,29719,57.56
Lancaster City Council,30UH,Potts Bakery Ltd,Environmental Services,Materials For Resale,27/07/2015,29638,151.20
Lancaster City Council,30UH,Potts Bakery Ltd,Environmental Services,Materials For Resale,28/07/2015,29661,181.35
Lancaster City Council,30UH,Potts Bakery Ltd,Environmental Services,Materials For Resale,21/08/2015,29983,95.40
Lancaster City Council,30UH,Potts Bakery Ltd,Environmental Services,Materials For Resale,15/07/2015,29573,251.55
Lancaster City Council,30UH,Potts Bakery Ltd,Environmental Services,Materials For Resale,14/08/2015,29899,244.87
Lancaster City Council,30UH,Potts Bakery Ltd,Environmental Services,Materials For Resale,14/08/2015,29909,178.50
Lancaster City Council,30UH,Poundland,Health & Housing,Equipment and Tools - General,13/07/2015,bpc002992,4.00
Lancaster City Council,30UH,Poundland,Health & Housing,Equipment and Tools - General,20/07/2015,bpc003023,22.00
Lancaster City Council,30UH,Poundland,Health & Housing,Equipment and Tools - General,20/07/2015,bpc003024,12.50
Lancaster City Council,30UH,Poundland,Health & Housing,Equipment and Tools - General,18/09/2015,bpc003302,48.34
Lancaster City Council,30UH,Poundland,Health & Housing,Sundry Expenses,28/07/2015,bpc003061,12.50
Lancaster City Council,30UH,Poundland,Health & Housing,Materials - General,01/07/2015,bpc002940,6.00
Lancaster City Council,30UH,Poundland,Health & Housing,Materials - General,30/09/2015,bpc003342,13.33
Lancaster City Council,30UH,Poundstretcher,Environmental Services,Cleaning Materials,14/07/2015,29819,8.29
Lancaster City Council,30UH,powerhousefitness.co.uk,Health & Housing,Equipment and Tools - General,02/09/2015,bpc003267,687.50
Lancaster City Council,30UH,premier design products,Health & Housing,Materials For Resale,24/09/2015,bpc003322,7.10
Lancaster City Council,30UH,Premier Inn,Governance,Software HR/Payroll - Aurora,25/08/2015,lpc000265,136.00
Lancaster City Council,30UH,Premier Inn,Health & Housing,Services - General,01/07/2015,bpc002960,-17.50
Lancaster City Council,30UH,Premier Inn,Health & Housing,Services - General,01/07/2015,bpc002961,184.00
Lancaster City Council,30UH,Print Impressions,Environmental Services,Printing & Stationery,27/07/2015,29639,235.00
Lancaster City Council,30UH,printing.com,Health & Housing,Marketing,05/08/2015,bpc003142,73.39
Lancaster City Council,30UH,printing.com,Resources,Corporate Safety,04/08/2015,ppc000332,768.00
Lancaster City Council,30UH,Promenade Music,Regeneration and Planning,Equipment and Tools - General,23/09/2015,npc000827,283.33
Lancaster City Council,30UH,Pulse Fitness Limited,Health & Housing,Equipment and Tools - General,04/09/2015,bpc003284,1932.12
Lancaster City Council,30UH,Queen Square Medical Practice,Governance,Services - Medical Fees,25/08/2015,lpc000266,35.00
Lancaster City Council,30UH,Quickfire Tableware Ltd,Environmental Services,Equipment and Tools - General,21/09/2015,30352,354.45
Lancaster City Council,30UH,Rainbow Slush,Environmental Services,Materials For Resale,14/08/2015,29906,474.65
Lancaster City Council,30UH,Rainbow Slush,Environmental Services,Materials For Resale,02/09/2015,30153,509.65
Lancaster City Council,30UH,RC J Security,Health & Housing,Sanctuary Scheme,03/08/2015,spc001116,28.39
Lancaster City Council,30UH,REALLY USEFULL PRODUCTS,Environmental Services,Printing & Stationery,15/07/2015,29498,60.12
Lancaster City Council,30UH,Reeds Printers,Regeneration and Planning,Printing & Stationery,12/08/2015,npc000787,10.00
Lancaster City Council,30UH,Reel Cinema,Health & Housing,Services - General,12/08/2015,bpc003152,56.07
Lancaster City Council,30UH,Reel Cinema,Health & Housing,Services - General,21/08/2015,bpc003190,56.07
Lancaster City Council,30UH,Reel Cinema,Health & Housing,Services - General,07/08/2015,bpc003146,56.07
Lancaster City Council,30UH,Reel Cinema,Health & Housing,Services - General,30/07/2015,bpc003084,64.00
Lancaster City Council,30UH,Regent Road Petrol Station,Environmental Services,Petrol & Derv,01/07/2015,29239,16.22
Lancaster City Council,30UH,Replacementkeys.co.uk,Environmental Services,Equipment and Tools - General,14/07/2015,29818,4.52
Lancaster City Council,30UH,REPlay Maintence,Health & Housing,R & M - Buildings,22/09/2015,bpc003315,525.00
Lancaster City Council,30UH,RingGo,Environmental Services,Car Parking Contracts,01/07/2015,29314,2.34
Lancaster City Council,30UH,RingGo,Environmental Services,Car Parking Contracts,01/07/2015,29316,2.34
Lancaster City Council,30UH,RingGo,Environmental Services,Car Parking Contracts,01/07/2015,29317,1.42
Lancaster City Council,30UH,RingGo,Environmental Services,Car Parking Contracts,01/07/2015,29324,7.01
Lancaster City Council,30UH,RingGo,Environmental Services,Car Parking Contracts,01/07/2015,29416,1.42
Lancaster City Council,30UH,RingGo,Environmental Services,Car Parking Contracts,01/07/2015,29417,1.42
Lancaster City Council,30UH,RingGo,Environmental Services,Car Parking Contracts,01/07/2015,29418,1.42
Lancaster City Council,30UH,Risk Assessment Products,Environmental Services,Equipment and Tools - General,01/07/2015,29249,19.12
Lancaster City Council,30UH,RJB Stone Ltd,Environmental Services,Materials For Resale,14/09/2015,30288,255.60
Lancaster City Council,30UH,RJB Stone Ltd,Environmental Services,Materials For Resale,24/08/2015,30029,169.37
Lancaster City Council,30UH,Royal Mail,Regeneration and Planning,Materials For Resale,03/09/2015,30374,111.30
Lancaster City Council,30UH,Royal Mail,Regeneration and Planning,Materials For Resale,04/09/2015,30201,491.40
Lancaster City Council,30UH,Running Imp International Spor,Health & Housing,Services - General,01/07/2015,bpc002925,295.41
Lancaster City Council,30UH,Russum,Environmental Services,Clothing & Uniforms,22/07/2015,29574,36.96
Lancaster City Council,30UH,Russums,Environmental Services,Clothing & Uniforms,24/09/2015,30422,53.95
Lancaster City Council,30UH,Russums ,Environmental Services,Clothing & Uniforms,30/07/2015,29710,175.50
Lancaster City Council,30UH,Ryan Air Conditioning Spares L,Health & Housing,Equipment and Tools - General,14/07/2015,bpc003001,77.50
Lancaster City Council,30UH,Ryman,Environmental Services,Equipment and Tools - General,14/08/2015,29900,9.14
Lancaster City Council,30UH,Ryman,Environmental Services,Exhibitions & Events,13/07/2015,29466,5.82
Lancaster City Council,30UH,Ryman,Resources,R & M - Buildings,07/07/2015,ppc000308,14.97
Lancaster City Council,30UH,Ryman,Resources,R & M - Buildings,30/07/2015,ppc000331,15.80
Lancaster City Council,30UH,Ryman,Resources,R & M - Buildings,24/09/2015,ppc000357,24.52
Lancaster City Council,30UH,Ryman,Resources,R & M - Buildings,14/07/2015,ppc000316,21.62
Lancaster City Council,30UH,Ryman,Environmental Services,Equipment and Tools - General,01/07/2015,29253,3.32
Lancaster City Council,30UH,Ryman,Resources,R & M - Buildings,21/08/2015,ppc000338,16.67
Lancaster City Council,30UH,Ryman,Health & Housing,Tenants Participation,24/08/2015,hpc000254,14.52
Lancaster City Council,30UH,SAFETY FIRST AID,Environmental Services,First Aid Equipment,17/09/2015,30327,83.05
Lancaster City Council,30UH,Safetyshop (Brady Corporation ,Resources,R & M - Buildings,04/08/2015,ppc000333,-24.95
Lancaster City Council,30UH,Safetyshop (Brady Corporation ,Resources,R & M - Buildings,29/07/2015,ppc000330,24.95
Lancaster City Council,30UH,Safetyshop (Brady Corporation ,Resources,R & M - Buildings,06/08/2015,ppc000335,34.20
Lancaster City Council,30UH,SailFlags.co.uk,Environmental Services,Entertainment Fees,04/07/2015,29360,304.50
Lancaster City Council,30UH,Sainsburys,Environmental Services,Materials For Resale,01/07/2015,29255,24.42
Lancaster City Council,30UH,Sainsburys,Environmental Services,Materials For Resale,15/07/2015,29514,10.00
Lancaster City Council,30UH,Sainsburys,Health & Housing,Tenants Participation,24/08/2015,hpc000255,38.92
Lancaster City Council,30UH,salmon Ltd,Regeneration and Planning,Materials For Resale,05/08/2015,29797,43.44
Lancaster City Council,30UH,Scan Computers International,Resources,Purchase Of Equipment,28/07/2015,jpc000474,26.23
Lancaster City Council,30UH,Scan Computers International L,Resources,Infrastructure - Update & Maintenance,01/07/2015,jpc000444,26.23
Lancaster City Council,30UH,Scotforth Dry Cleaners,Environmental Services,Exhibitions & Events,15/07/2015,29490,34.17
Lancaster City Council,30UH,Scotforth Dry Cleaners,Environmental Services,Exhibitions & Events,28/09/2015,30449,44.58
Lancaster City Council,30UH,Screwfix Direct Ltd,Health & Housing,Equipment and Tools - General,17/07/2015,bpc003020,6.04
Lancaster City Council,30UH,Screwfix Direct Ltd,Health & Housing,Equipment and Tools - General,29/07/2015,bpc003069,176.18
Lancaster City Council,30UH,Screwfix Direct Ltd,Environmental Services,Equipment and Tools - General,03/09/2015,30179,11.66
Lancaster City Council,30UH,Screwfix Direct Ltd,Environmental Services,Equipment and Tools - General,17/09/2015,30328,7.50
Lancaster City Council,30UH,Screwfix Direct Ltd,Environmental Services,Equipment and Tools - General,24/09/2015,30424,54.96
Lancaster City Council,30UH,Screwfix Direct Ltd,Health & Housing,Equipment and Tools - General,08/09/2015,spc001094,4.99
Lancaster City Council,30UH,Screwfix Direct Ltd,Resources,Equipment and Tools - General,24/07/2015,ppc000322,13.66
Lancaster City Council,30UH,Screwfix Direct Ltd,Health & Housing,Services - General,30/07/2015,bpc003087,17.04
Lancaster City Council,30UH,Screwfix Direct Ltd,Environmental Services,Equipment and Tools - General,04/08/2015,29794,10.83
Lancaster City Council,30UH,Screwfix Direct Ltd,Environmental Services,Clothing & Uniforms,02/09/2015,30107,62.99
Lancaster City Council,30UH,Screwfix Direct Ltd,Health & Housing,Equipment and Tools - General,24/09/2015,spc001126,11.91
Lancaster City Council,30UH,Screwfix Direct Ltd,Health & Housing,Equipment and Tools - General,22/09/2015,bpc003314,135.92
Lancaster City Council,30UH,Screwfix Direct Ltd,Health & Housing,Materials - General,24/08/2015,bpc003218,28.89
Lancaster City Council,30UH,Screwfix Direct Ltd,Health & Housing,Equipment and Tools - General,01/09/2015,bpc003248,283.32
Lancaster City Council,30UH,Senetic Limited,Resources,Office Equipment,01/07/2015,jpc000439,73.24
Lancaster City Council,30UH,Shared Earth UK Ltd,Environmental Services,Materials For Resale,27/07/2015,29633,247.19
Lancaster City Council,30UH,Shared Earth UK Ltd,Environmental Services,Materials For Resale,15/09/2015,30300,113.79
Lancaster City Council,30UH,Shell Moorside Manchester,Health & Housing,Petrol & Derv,29/09/2015,bpc003333,19.05
Lancaster City Council,30UH,SICO Europe Limited,Health & Housing,Equipment and Tools - General,30/07/2015,bpc003094,820.25
Lancaster City Council,30UH,Signs Express (Lancaster),Regeneration and Planning,Marketing,03/07/2015,29356,140.00
Lancaster City Council,30UH,Signs Express (Lancaster),Regeneration and Planning,Printing & Stationery,03/09/2015,30174,262.68
Lancaster City Council,30UH,Silver Tree,Resources,Long Service Awards,07/08/2015,fpc000120,125.00
Lancaster City Council,30UH,Simon`s Rodents,Environmental Services,Equipment and Tools - General,13/07/2015,29468,333.00
Lancaster City Council,30UH,Slater Safety Supplies,Environmental Services,First Aid Equipment,07/08/2015,29845,34.36
Lancaster City Council,30UH,SNAP FRAMES,Health & Housing,Printing & Stationery,07/08/2015,hpc000252,136.20
Lancaster City Council,30UH,SOLACE,Management Team,Professional Fees Etc,15/09/2015,mpc000044,398.00
Lancaster City Council,30UH,solar centre,Health & Housing,Sanctuary Scheme,23/09/2015,spc001123,384.00
Lancaster City Council,30UH,Solarwinds Software Europe Limited,Resources,Infrastructure - Update & Maintenance,10/07/2015,jpc000458,54.17
Lancaster City Council,30UH,Solon security,Health & Housing,Sanctuary Scheme,13/07/2015,spc001017,129.25
Lancaster City Council,30UH,Solon security,Health & Housing,Sanctuary Scheme,17/08/2015,spc001070,114.25
Lancaster City Council,30UH,Somercourt Ltd,Health & Housing,Equipment and Tools - General,03/08/2015,spc001166,299.00
Lancaster City Council,30UH,Somerset County Council,Regeneration and Planning,Service Training Budget,30/09/2015,npc000843,60.00
Lancaster City Council,30UH,Sovereign,Health & Housing,Materials - General,28/07/2015,bpc003051,71.05
Lancaster City Council,30UH,Sowerby Bridge Station,Health & Housing,Use Of Public Tpt - Officers,25/08/2015,bpc003222,22.80
Lancaster City Council,30UH,Speedy freights,Governance,Legal & Court Costs,16/09/2015,lpc000277,55.00
Lancaster City Council,30UH,Speedy Stamps Ltdf,Health & Housing,Printing & Stationery,04/09/2015,bpc003287,15.73
Lancaster City Council,30UH,Speights,Environmental Services,Materials - General,15/07/2015,29501,25.70
Lancaster City Council,30UH,Speights,Environmental Services,Materials For Resale,15/07/2015,29501,776.88
Lancaster City Council,30UH,Speights,Environmental Services,Materials For Resale,14/08/2015,29904,724.33
Lancaster City Council,30UH,Spin CDs,Resources,Long Service Awards,22/09/2015,jpc000507,65.82
Lancaster City Council,30UH,Sports Direct,Health & Housing,Cleaning Materials,24/09/2015,bpc003324,53.32
Lancaster City Council,30UH,Sports Direct,Health & Housing,Clothing & Uniforms,03/09/2015,bpc003297,21.66
Lancaster City Council,30UH,Sports Direct,Health & Housing,Equipment and Tools - General,18/08/2015,bpc003187,29.97
Lancaster City Council,30UH,Sports Direct,Environmental Services,System Suspense Account    018,06/08/2015,29810,15.78
Lancaster City Council,30UH,Sports Direct,Health & Housing,Clothing & Uniforms,09/07/2015,bpc002980,52.54
Lancaster City Council,30UH,Sports Direct,Health & Housing,Clothing & Uniforms,09/07/2015,bpc002985,185.94
Lancaster City Council,30UH,Sports Direct,Health & Housing,Clothing & Uniforms,20/07/2015,bpc003031,-10.83
Lancaster City Council,30UH,Sports Direct,Environmental Services,Clothing & Uniforms,15/09/2015,30308,38.99
Lancaster City Council,30UH,Squires snooker centre,Health & Housing,Tenants Participation,21/07/2015,hpc000244,30.00
Lancaster City Council,30UH,SSP Denmark,Health & Housing,Sundry Expenses,02/09/2015,bpc003259,10.04
Lancaster City Council,30UH,St Winifreds,Health & Housing,Services - Bed and Breakfast,07/08/2015,spc001052,30.00
Lancaster City Council,30UH,St Winifreds,Health & Housing,Services - Bed and Breakfast,20/08/2015,spc001076,180.00
Lancaster City Council,30UH,St Winifreds,Health & Housing,Services - Bed and Breakfast,26/08/2015,spc001080,30.00
Lancaster City Council,30UH,St Winifreds,Health & Housing,Services - Bed and Breakfast,28/08/2015,spc001083,385.00
Lancaster City Council,30UH,St Winifreds,Health & Housing,Services - Bed and Breakfast,22/09/2015,spc001114,60.00
Lancaster City Council,30UH,St Winifreds,Health & Housing,Services - Bed and Breakfast,24/07/2015,spc001032,120.00
Lancaster City Council,30UH,St Winifreds,Health & Housing,Services - Bed and Breakfast,24/07/2015,spc001033,55.00
Lancaster City Council,30UH,St Winifreds,Health & Housing,Services - Bed and Breakfast,24/08/2015,spc001078,60.00
Lancaster City Council,30UH,St Winifreds,Health & Housing,Services - Bed and Breakfast,02/09/2015,spc001086,30.00
Lancaster City Council,30UH,St Winifreds,Health & Housing,Services - Bed and Breakfast,15/09/2015,spc001107,90.00
Lancaster City Council,30UH,St Winifreds,Health & Housing,Services - Bed and Breakfast,21/09/2015,spc001108,150.00
Lancaster City Council,30UH,St Winifreds,Health & Housing,Services - Bed and Breakfast,22/09/2015,spc001115,30.00
Lancaster City Council,30UH,St Winifreds,Health & Housing,Services - Bed and Breakfast,23/09/2015,spc001120,55.00
Lancaster City Council,30UH,St Winifreds,Health & Housing,Services - Bed and Breakfast,23/09/2015,spc001121,85.00
Lancaster City Council,30UH,St Winifreds,Health & Housing,Services - Bed and Breakfast,24/09/2015,spc001127,340.00
Lancaster City Council,30UH,St Winifreds,Health & Housing,Services - Bed and Breakfast,14/09/2015,spc001106,30.00
Lancaster City Council,30UH,STA,Health & Housing,Materials For Resale,23/09/2015,bpc003319,10.40
Lancaster City Council,30UH,STA,Health & Housing,Service Training Budget,01/07/2015,bpc002946,54.58
Lancaster City Council,30UH,STA,Health & Housing,Service Training Budget,27/08/2015,bpc003234,28.00
Lancaster City Council,30UH,STA,Health & Housing,Service Training Budget,21/09/2015,bpc003310,90.00
Lancaster City Council,30UH,STA,Health & Housing,Service Training Budget,23/09/2015,bpc003320,40.00
Lancaster City Council,30UH,STA ,Health & Housing,Materials For Resale,16/07/2015,bpc003014,45.00
Lancaster City Council,30UH,STA ,Health & Housing,Service Training Budget,23/09/2015,bpc003321,25.00
Lancaster City Council,30UH,Stagecoach,Regeneration and Planning,Stagecoach Tickets,02/07/2015,29344,12232.22
Lancaster City Council,30UH,Stagecoach,Regeneration and Planning,Stagecoach Tickets,14/08/2015,29897,6632.64
Lancaster City Council,30UH,Stagecoach,Regeneration and Planning,Stagecoach Tickets,04/09/2015,30202,1768.14
Lancaster City Council,30UH,Station Garage Arnside,Regeneration and Planning,Petrol & Derv,03/08/2015,npc000779,32.00
Lancaster City Council,30UH,Station Garage Arnside,Regeneration and Planning,Petrol & Derv,19/08/2015,npc000794,62.40
Lancaster City Council,30UH,Stationery 4 Less,Environmental Services,Printing & Stationery,22/07/2015,29568,5.94
Lancaster City Council,30UH,Subway,Health & Housing,Sundry Expenses,17/08/2015,bpc003180,8.38
Lancaster City Council,30UH,Super fun stuff uk,Health & Housing,Services - General,09/07/2015,bpc002979,67.38
Lancaster City Council,30UH,Survey Monkey,Health & Housing,Equipment and Tools - General,30/07/2015,spc001039,649.17
Lancaster City Council,30UH,Tesco,Health & Housing,Equipment and Tools - General,13/07/2015,bpc002999,10.00
Lancaster City Council,30UH,Tesco,Health & Housing,Equipment and Tools - General,21/09/2015,bpc003313,3.75
Lancaster City Council,30UH,Tesco,Health & Housing,Services - General,28/07/2015,bpc003050,98.75
Lancaster City Council,30UH,Tesco,Health & Housing,Services - General,07/08/2015,bpc003147,10.45
Lancaster City Council,30UH,Tesco,Health & Housing,Services - General,18/08/2015,bpc003189,12.00
Lancaster City Council,30UH,Tesco ,Health & Housing,Equipment and Tools - General,02/07/2015,bpc002966,27.50
Lancaster City Council,30UH,The Chartered Institute Of Env. Health,Health & Housing,Service Training Budget,23/09/2015,spc001118,397.00
Lancaster City Council,30UH,The Chartered Institute Of Env. Health,Health & Housing,Service Training Budget,23/09/2015,spc001119,525.00
Lancaster City Council,30UH,The Clifton Hotel,Health & Housing,Services - Bed and Breakfast,26/08/2015,spc001081,80.00
Lancaster City Council,30UH,"The Crown Hotel, Harrogate",Management Team,Conferences & Seminars,10/07/2015,mpc000039,483.33
Lancaster City Council,30UH,The Curtain Gallery,Environmental Services,R & M - Buildings,21/09/2015,30348,800.00
Lancaster City Council,30UH,The Decal Co Ltd t/as Eurostic,Regeneration and Planning,Materials For Resale,02/07/2015,29345,249.70
Lancaster City Council,30UH,The Entertainer,Health & Housing,Services - General,25/08/2015,bpc003225,70.82
Lancaster City Council,30UH,The Key Safe Company,Health & Housing,Materials - General,22/09/2015,spc001113,4590.00
Lancaster City Council,30UH,The Market Cobbler,Resources,R & M - Buildings,25/09/2015,ppc000358,5.00
Lancaster City Council,30UH,The Post Office,Health & Housing,Services - General,25/09/2015,spc001128,1.26
Lancaster City Council,30UH,The RADAR key company,Resources,Materials For Resale,06/08/2015,rpc000066,552.00
Lancaster City Council,30UH,the ratchet company ,Health & Housing,Equipment and Tools - General,09/09/2015,bpc003291,55.30
Lancaster City Council,30UH,The Ratchet Shop,Environmental Services,Equipment and Tools - General,04/08/2015,29778,23.92
Lancaster City Council,30UH,The Reptile Room,Environmental Services,Equipment and Tools - General,22/07/2015,29579,70.83
Lancaster City Council,30UH,The Shower Doctor,Environmental Services,Equipment and Tools - General,09/07/2015,29425,19.82
Lancaster City Council,30UH,the Solar centre,Health & Housing,Sanctuary Scheme,17/08/2015,spc001066,384.00
Lancaster City Council,30UH,The Sun Hotel,Management Team,Hospitality,15/09/2015,mpc000042,20.83
Lancaster City Council,30UH,The Sun Hotel,Management Team,Hospitality,15/09/2015,mpc000043,41.25
Lancaster City Council,30UH,The Till Roll Co Ltd,Health & Housing,Materials - General,01/09/2015,bpc003244,52.00
Lancaster City Council,30UH,thetrainline,Health & Housing,Use Of Public Tpt - Officers,09/07/2015,bpc002981,58.24
Lancaster City Council,30UH,thetrainline,Health & Housing,Service Training Budget,13/07/2015,hpc000242,13.64
Lancaster City Council,30UH,The Uniform & Leisurewear Company Ltd,Health & Housing,Clothing & Uniforms,01/07/2015,spc001003,38.90
Lancaster City Council,30UH,The Works,Environmental Services,Materials - General,22/07/2015,29576,3.32
Lancaster City Council,30UH,thetrainline,Governance,Use Of Public Tpt - Officers,25/08/2015,lpc000267,18.72
Lancaster City Council,30UH,Thomann,Regeneration and Planning,Equipment and Tools - General,24/08/2015,npc000796,216.77
Lancaster City Council,30UH,Thomas Graham,Health & Housing,Equipment and Tools - General,16/07/2015,bpc003018,14.00
Lancaster City Council,30UH,Thomas Graham,Health & Housing,Equipment and Tools - General,16/07/2015,bpc003019,158.15
Lancaster City Council,30UH,Thomas Graham,Health & Housing,Equipment and Tools - General,13/08/2015,bpc003155,15.60
Lancaster City Council,30UH,Thomas Graham,Health & Housing,Equipment and Tools - General,13/08/2015,bpc003156,15.60
Lancaster City Council,30UH,Thomas Graham,Health & Housing,Equipment and Tools - General,23/07/2015,spc001028,4.32
Lancaster City Council,30UH,Thomas Graham,Health & Housing,Equipment and Tools - General,27/07/2015,spc001035,4.13
Lancaster City Council,30UH,Thomas Graham,Health & Housing,Equipment and Tools - General,31/07/2015,spc001043,15.60
Lancaster City Council,30UH,Thomas Graham,Health & Housing,Equipment and Tools - General,10/08/2015,spc001054,3.95
Lancaster City Council,30UH,Thomas Graham,Health & Housing,Equipment and Tools - General,14/09/2015,spc001104,47.45
Lancaster City Council,30UH,Thomas Graham,Health & Housing,Equipment and Tools - General,14/09/2015,spc001105,45.23
Lancaster City Council,30UH,Thomas Graham,Health & Housing,Home Improvement Works,31/07/2015,spc001044,32.19
Lancaster City Council,30UH,Thomas Graham,Health & Housing,Materials - General,15/07/2015,spc001022,19.55
Lancaster City Council,30UH,Thomas Graham,Health & Housing,Materials - General,31/07/2015,spc001045,24.42
Lancaster City Council,30UH,Thomas Graham,Health & Housing,Materials - General,05/08/2015,spc001048,28.38
Lancaster City Council,30UH,Thomas Graham,Health & Housing,Materials - General,10/08/2015,spc001053,47.85
Lancaster City Council,30UH,Thomas Graham,Health & Housing,Materials - General,27/08/2015,spc001082,21.88
Lancaster City Council,30UH,Thomas Graham,Health & Housing,Materials - General,10/09/2015,spc001097,95.47
Lancaster City Council,30UH,Thomas Graham,Health & Housing,Materials - General,10/09/2015,spc001098,31.95
Lancaster City Council,30UH,Thomas Graham,Health & Housing,Sanctuary Scheme,23/07/2015,spc001027,6.75
Lancaster City Council,30UH,Thomas Graham,Health & Housing,Sanctuary Scheme,23/07/2015,spc001029,35.80
Lancaster City Council,30UH,Thomas Graham,Environmental Services,System Suspense Account    018,06/08/2015,29817,14.55
Lancaster City Council,30UH,Thomas Telford,Regeneration and Planning,Subscriptions,03/07/2015,npc000753,365.00
Lancaster City Council,30UH,Thomson,Health & Housing,Sundry Expenses,27/07/2015,bpc003043,1324.01
Lancaster City Council,30UH,Thos Graham,Regeneration and Planning,Equipment and Tools - General,03/07/2015,npc000758,355.00
Lancaster City Council,30UH,Till rolls .com,Resources,Office Equipment,17/09/2015,rpc000069,63.30
Lancaster City Council,30UH,Timpson Ltd,Health & Housing,Equipment and Tools - General,30/09/2015,bpc003339,18.75
Lancaster City Council,30UH,Timpson Ltd,Resources,Disaster Provision,24/07/2015,jpc000463,7.50
Lancaster City Council,30UH,Timpson Ltd,Resources,Office Equipment,17/09/2015,ppc000348,16.67
Lancaster City Council,30UH,Timpson Ltd,Regeneration and Planning,Deposits,30/07/2015,npc000777,35.00
Lancaster City Council,30UH,Timpson Ltd,Governance,Office Equipment,11/09/2015,lpc000276,10.00
Lancaster City Council,30UH,TK Maxx,Health & Housing,Clothing & Uniforms,26/08/2015,bpc003230,28.32
Lancaster City Council,30UH,Timpson Ltd,Health & Housing,Equipment and Tools - General,30/09/2015,bpc003341,20.83
Lancaster City Council,30UH,TNT,Governance,Support - Postage,28/08/2015,lpc000270,-31.41
Lancaster City Council,30UH,Tos Graham,Regeneration and Planning,Equipment and Tools - General,10/08/2015,npc000785,13.92
Lancaster City Council,30UH,Total Catering Equipment,Environmental Services,Equipment and Tools - General,01/07/2015,29290,799.99
Lancaster City Council,30UH,TP Espress,Regeneration and Planning,Use Of Public Tpt - Officers,23/09/2015,npc000828,65.90
Lancaster City Council,30UH,TP Express,Regeneration and Planning,Use Of Public Tpt - Officers,28/08/2015,npc000798,31.00
Lancaster City Council,30UH,thetrainline,Health & Housing,Service Training Budget,06/07/2015,hpc000231,9.74
Lancaster City Council,30UH,thetrainline,Health & Housing,Service Training Budget,06/07/2015,hpc000235,68.75
Lancaster City Council,30UH,thetrainline,Governance,Use Of Public Tpt - Officers,08/07/2015,lpc000253,45.90
Lancaster City Council,30UH,thetrainline,Health & Housing,Use Of Public Tpt - Officers,31/07/2015,bpc003122,62.22
Lancaster City Council,30UH,Transpennine,Regeneration and Planning,Use Of Public Tpt - Officers,23/09/2015,npc000824,5.80
Lancaster City Council,30UH,Travellers Choice,Regeneration and Planning,Coach Tours,03/09/2015,30169,622.75
Lancaster City Council,30UH,Travellers Choice,Health & Housing,Sundry Expenses,04/09/2015,bpc003283,3698.00
Lancaster City Council,30UH,Travelodge,Health & Housing,Service Training Budget,01/07/2015,spc001005,1.67
Lancaster City Council,30UH,Travelodge,Regeneration and Planning,Service Training Budget,01/07/2015,npc000750,33.17
Lancaster City Council,30UH,Travelodge,Health & Housing,Services - Bed and Breakfast,01/09/2015,spc001084,184.17
Lancaster City Council,30UH,Travelodge,Health & Housing,Services - Bed and Breakfast,01/09/2015,spc001085,38.33
Lancaster City Council,30UH,Travelodge ,Resources,Conferences & Seminars,27/07/2015,fpc000117,108.33
Lancaster City Council,30UH,Travis Perkins,Health & Housing,Equipment and Tools - General,18/08/2015,spc001073,22.64
Lancaster City Council,30UH,Travis Perkins,Health & Housing,Equipment and Tools - General,18/08/2015,spc001074,23.21
Lancaster City Council,30UH,Travis Perkins,Environmental Services,Equipment and Tools - General,01/07/2015,29261,19.57
Lancaster City Council,30UH,Travis Perkins,Environmental Services,Equipment and Tools - General,22/07/2015,29578,86.12
Lancaster City Council,30UH,Travis Perkins,Environmental Services,Equipment and Tools - General,05/08/2015,29804,46.17
Lancaster City Council,30UH,Travis Perkins,Health & Housing,Equipment and Tools - General,03/08/2015,spc001075,12.65
Lancaster City Council,30UH,Travis Perkins,Environmental Services,Grounds Maintenance - Other,21/08/2015,29986,19.82
Lancaster City Council,30UH,Travis Perkins,Regeneration and Planning,Management Plan Projects,07/07/2015,npc000755,67.71
Lancaster City Council,30UH,Travis Perkins,Health & Housing,Materials - General,17/08/2015,spc001071,72.54
Lancaster City Council,30UH,Travis Perkins,Health & Housing,Materials - General,17/08/2015,spc001062,241.66
Lancaster City Council,30UH,Travis Perkins,Environmental Services,R & M - Buildings,24/09/2015,30425,82.22
Lancaster City Council,30UH,Travis Perkins,Environmental Services,R & M - Buildings,24/09/2015,30426,42.00
Lancaster City Council,30UH,Travis Perkins,Environmental Services,R & M - Buildings,24/09/2015,30427,66.09
Lancaster City Council,30UH,Travis Perkins,Health & Housing,Sanctuary Scheme,17/08/2015,spc001064,4.50
Lancaster City Council,30UH,Travis Perkins,Health & Housing,Sanctuary Scheme,17/08/2015,spc001063,33.56
Lancaster City Council,30UH,Travis Perkins,Health & Housing,Equipment and Tools - General,01/07/2015,spc001006,483.32
Lancaster City Council,30UH,Trust Medical,Governance,Corporate Training Budget,28/07/2015,lpc000261,349.00
Lancaster City Council,30UH,Trust Medical,Governance,Corporate Training Budget,25/08/2015,lpc000264,349.00
Lancaster City Council,30UH,Trust Medical,Governance,Corporate Training Budget,01/09/2015,lpc000271,70.00
Lancaster City Council,30UH,TUTORCARE,Environmental Services,Service Training Budget,07/08/2015,29840,105.00
Lancaster City Council,30UH,TV Licence,Health & Housing,Miscellaneous Licences,27/07/2015,bpc003046,145.50
Lancaster City Council,30UH,Twitter,Health & Housing,Internet Provision,04/08/2015,bpc003138,34.64
Lancaster City Council,30UH,Twitter,Health & Housing,Internet Provision,04/08/2015,bpc003140,34.78
Lancaster City Council,30UH,Twitter,Health & Housing,Internet Provision,04/08/2015,bpc003135,29.92
Lancaster City Council,30UH,Twitter,Health & Housing,Internet Provision,11/09/2015,bpc003294,0.66
Lancaster City Council,30UH,UK Point of Sale Group Ltd,Health & Housing,Printing & Stationery,13/08/2015,bpc003200,168.45
Lancaster City Council,30UH,UK Point of Sale Group Ltd,Health & Housing,Printing & Stationery,04/09/2015,bpc003290,28.71
Lancaster City Council,30UH,UKPAPERROLLS,Health & Housing,Materials - General,01/07/2015,bpc002937,16.70
Lancaster City Council,30UH,UKPOS.com,Health & Housing,Printing & Stationery,29/09/2015,bpc003332,198.50
Lancaster City Council,30UH,Uniform & Leisure,Health & Housing,Clothing & Uniforms,01/07/2015,bpc002934,24.00
Lancaster City Council,30UH,United Utilities,Health & Housing,Water Services,01/07/2015,bpc002953,138.96
Lancaster City Council,30UH,United Utilities,Health & Housing,Water Services,30/07/2015,bpc003090,9634.28
Lancaster City Council,30UH,United Utilities,Health & Housing,Water Services,03/08/2015,bpc003131,138.96
Lancaster City Council,30UH,United Utilities,Health & Housing,Water Services,04/09/2015,bpc003285,138.96
Lancaster City Council,30UH,United Utilities,Environmental Services,Water Services,27/07/2015,29632,6144.14
Lancaster City Council,30UH,United Utilities,Environmental Services,Water Services,15/09/2015,30296,10138.44
Lancaster City Council,30UH,UPS,Resources,Infrastructure - Update & Maintenance,14/09/2015,jpc000497,95.96
Lancaster City Council,30UH,Value Products Ltd (Safety Sig,Environmental Services,Equipment and Tools - General,09/08/2015,30263,80.55
Lancaster City Council,30UH,Verifone,Health & Housing,Use Of Public Tpt - Officers,03/09/2015,spc001088,4.40
Lancaster City Council,30UH,Vets4Pets Lancaster,Environmental Services,Materials - General,15/09/2015,30305,16.67
Lancaster City Council,30UH,Victoria Car Park,Regeneration and Planning,Printing & Stationery,05/08/2015,29798,4.33
Lancaster City Council,30UH,Viking Direct,Regeneration and Planning,Printing & Stationery,06/07/2015,29376,76.96
Lancaster City Council,30UH,Viking Direct,Regeneration and Planning,Printing & Stationery,04/09/2015,30203,26.80
Lancaster City Council,30UH,Viking Direct,Health & Housing,Printing & Stationery,01/07/2015,bpc002951,-95.00
Lancaster City Council,30UH,Viking Direct,Health & Housing,Printing & Stationery,09/07/2015,bpc002983,42.98
Lancaster City Council,30UH,Viking Direct,Health & Housing,Printing & Stationery,01/07/2015,bpc002922,405.35
Lancaster City Council,30UH,Viking Direct,Health & Housing,Printing & Stationery,01/07/2015,bpc002930,41.93
Lancaster City Council,30UH,Virgin Trains,Resources,Use Of Public Tpt - Officers,14/09/2015,fpc000134,130.00
Lancaster City Council,30UH,Virgin Trains,Resources,Use Of Public Tpt - Officers,14/09/2015,fpc000135,91.60
Lancaster City Council,30UH,Virgin Trains,Resources,Use Of Public Tpt - Officers,14/09/2015,fpc000136,121.30
Lancaster City Council,30UH,Virgin Trains,Resources,Use Of Public Tpt - Officers,14/09/2015,fpc000127,23.70
Lancaster City Council,30UH,Virgin Trains,Resources,Use Of Public Tpt - Officers,02/09/2015,jpc000488,17.30
Lancaster City Council,30UH,Virgin Trains,Resources,Use Of Public Tpt - Officers,02/09/2015,jpc000489,75.00
Lancaster City Council,30UH,Virgin Trains,Resources,Use Of Public Tpt - Officers,02/09/2015,jpc000490,17.30
Lancaster City Council,30UH,Virgin Trains,Health & Housing,Children & Young People,02/09/2015,hpc000260,8.80
Lancaster City Council,30UH,Virgin Trains,Health & Housing,Service Training Budget,07/08/2015,hpc000251,17.30
Lancaster City Council,30UH,Virgin Trains,Regeneration and Planning,Use Of Public Tpt - Officers,31/07/2015,npc000778,166.30
Lancaster City Council,30UH,Virgin Trains,Governance,Central Transport - General,15/07/2015,dpc000309,10.20
Lancaster City Council,30UH,Virgin Trains,Health & Housing,Children & Young People,30/07/2015,bpc003082,34.40
Lancaster City Council,30UH,Virgin Trains,Governance,Members Expenses - Travel,02/09/2015,dpc000314,91.60
Lancaster City Council,30UH,Virgin Trains,Governance,Members Expenses - Travel,07/09/2015,dpc000315,31.80
Lancaster City Council,30UH,Virgin Trains,Governance,Service Training Budget,01/07/2015,dpc000303,8.80
Lancaster City Council,30UH,Virgin Trains,Governance,Service Training Budget,28/09/2015,dpc000317,8.80
Lancaster City Council,30UH,Virgin Trains,Resources,Use Of Public Tpt - Officers,01/07/2015,fpc000113,31.00
Lancaster City Council,30UH,Virgin Trains,Health & Housing,Use Of Public Tpt - Officers,31/07/2015,bpc003117,292.90
Lancaster City Council,30UH,Virgin Trains,Health & Housing,Use Of Public Tpt - Officers,31/07/2015,bpc003118,265.10
Lancaster City Council,30UH,Virgin Trains,Health & Housing,Use Of Public Tpt - Officers,31/07/2015,bpc003119,217.00
Lancaster City Council,30UH,Virgin Trains,Health & Housing,Use Of Public Tpt - Officers,31/07/2015,bpc003120,74.50
Lancaster City Council,30UH,Virgin Trains,Health & Housing,Use Of Public Tpt - Officers,31/07/2015,bpc003121,322.40
Lancaster City Council,30UH,Virgin Trains,Health & Housing,Use Of Public Tpt - Officers,31/07/2015,bpc003123,131.00
Lancaster City Council,30UH,Virgin Trains,Health & Housing,Use Of Public Tpt - Officers,04/09/2015,bpc003288,178.90
Lancaster City Council,30UH,Virgin Trains,Environmental Services,Use Of Public Tpt - Officers,23/07/2015,29583,29.80
Lancaster City Council,30UH,Virgin Trains,Resources,Use Of Public Tpt - Officers,03/08/2015,fpc000119,31.00
Lancaster City Council,30UH,Virgin Trains,Resources,Use Of Public Tpt - Officers,25/08/2015,fpc000121,66.90
Lancaster City Council,30UH,Virgin Trains,Resources,Use Of Public Tpt - Officers,25/08/2015,fpc000122,57.20
Lancaster City Council,30UH,Virgin Trains,Resources,Use Of Public Tpt - Officers,09/09/2015,fpc000124,83.20
Lancaster City Council,30UH,Virgin Trains,Resources,Use Of Public Tpt - Officers,11/09/2015,fpc000125,17.60
Lancaster City Council,30UH,Virgin Trains,Health & Housing,Use Of Public Tpt - Officers,14/07/2015,spc001018,102.60
Lancaster City Council,30UH,Virgin Trains,Health & Housing,Use Of Public Tpt - Officers,03/09/2015,spc001087,102.60
Lancaster City Council,30UH,Virgin Trains,Governance,Use Of Public Tpt - Officers,18/09/2015,lpc000278,5.80
Lancaster City Council,30UH,Virgin Trains,Health & Housing,Services - Civil Contingencies,02/07/2015,spc001008,17.30
Lancaster City Council,30UH,Virgin Trains,Resources,Use Of Public Tpt - Officers,27/07/2015,fpc000118,181.20
Lancaster City Council,30UH,Vistaprint,Regeneration and Planning,Marketing,07/08/2015,npc000782,22.68
Lancaster City Council,30UH,Vodafone,Environmental Services,Office Equipment,14/07/2015,29820,8.33
Lancaster City Council,30UH,Waterwalkerz.com,Health & Housing,Equipment and Tools - General,02/09/2015,bpc003262,1200.00
Lancaster City Council,30UH,WebEx,Resources,Infrastructure - Update & Maintenance,24/07/2015,jpc000469,144.00
Lancaster City Council,30UH,Welcome Break,Health & Housing,Sundry Expenses,25/08/2015,bpc003226,8.16
Lancaster City Council,30UH,Welcome Break,Health & Housing,Sundry Expenses,02/09/2015,bpc003260,9.82
Lancaster City Council,30UH,West Coast Glass,Health & Housing,Materials - General,17/08/2015,spc001068,26.18
Lancaster City Council,30UH,West Coast Trains,Health & Housing,Service Training Budget,14/07/2015,spc001020,16.67
Lancaster City Council,30UH,West Coast Trains,Health & Housing,Use Of Public Tpt - Officers,11/09/2015,bpc003295,3.40
Lancaster City Council,30UH,West Coast Trains,Health & Housing,Use Of Public Tpt - Officers,03/09/2015,spc001091,16.67
Lancaster City Council,30UH,West Coast Trains,Regeneration and Planning,Subsistence,25/09/2015,npc000831,8.33
Lancaster City Council,30UH,West Coast Trains,Regeneration and Planning,Use Of Public Tpt - Officers,25/09/2015,npc000830,90.60
Lancaster City Council,30UH,West Coast Trains,Health & Housing,Use Of Public Tpt - Officers,17/08/2015,bpc003184,8.80
Lancaster City Council,30UH,WET AND FORGET,Environmental Services,Materials - General,01/07/2015,29230,110.31
Lancaster City Council,30UH,Wetherspoon,Health & Housing,Service Training Budget,30/09/2015,bpc003337,25.74
Lancaster City Council,30UH,WF Elecrical,Resources,R & M - Buildings,21/07/2015,ppc000320,14.00
Lancaster City Council,30UH,WF Senate,Environmental Services,Equipment and Tools - General,19/08/2015,29968,30.10
Lancaster City Council,30UH,WF Senate,Resources,R & M - Buildings,24/07/2015,ppc000327,9.28
Lancaster City Council,30UH,Whittakers,Health & Housing,Clothing & Uniforms,01/07/2015,bpc002918,114.00
Lancaster City Council,30UH,Whittakers,Health & Housing,Clothing & Uniforms,28/07/2015,bpc003052,61.75
Lancaster City Council,30UH,Whittakers,Health & Housing,Clothing & Uniforms,28/07/2015,bpc003053,83.70
Lancaster City Council,30UH,Whittard of Chelsea,Environmental Services,Equipment and Tools - General,27/07/2015,29646,627.50
Lancaster City Council,30UH,Wickes,Health & Housing,Equipment and Tools - General,29/07/2015,bpc003076,11.64
Lancaster City Council,30UH,Wickes,Health & Housing,Equipment and Tools - General,13/07/2015,bpc002994,4.99
Lancaster City Council,30UH,Wickes ,Health & Housing,R & M - Buildings,30/09/2015,bpc003336,11.68
Lancaster City Council,30UH,Wilko,Environmental Services,Equipment and Tools - General,14/08/2015,29901,6.67
Lancaster City Council,30UH,Wilko,Resources,Office Equipment,17/09/2015,ppc000347,15.75
Lancaster City Council,30UH,Wilko,Health & Housing,Equipment and Tools - General,16/07/2015,bpc003011,25.00
Lancaster City Council,30UH,Wilko,Health & Housing,Equipment Funded by Reserves,24/08/2015,hpc000256,8.33
Lancaster City Council,30UH,Wilko,Health & Housing,Equipment Funded by Reserves,24/08/2015,hpc000257,8.33
Lancaster City Council,30UH,Wilko,Resources,R & M - Buildings,07/07/2015,ppc000309,8.33
Lancaster City Council,30UH,Wilko,Resources,Cleaning Materials,24/07/2015,ppc000325,2.50
Lancaster City Council,30UH,Wilko,Resources,Cleaning Materials,24/07/2015,ppc000326,2.50
Lancaster City Council,30UH,Wilko,Resources,Equipment and Tools - General,24/07/2015,ppc000326,5.79
Lancaster City Council,30UH,Wilko,Health & Housing,R & M - Environmental Works,21/07/2015,hpc000245,81.67
Lancaster City Council,30UH,WIRING REGULATIONS,Environmental Services,Materials - General,01/07/2015,29232,1025.17
Lancaster City Council,30UH,woodchester group,Health & Housing,Services - General,06/07/2015,bpc002974,149.45
Lancaster City Council,30UH,World of Brass ,Environmental Services,Equipment and Tools - General,21/09/2015,30350,54.86
Lancaster City Council,30UH,WRc Plc,Regeneration and Planning,Capital Payments To Contractors,06/08/2015,npc000780,81.70
Lancaster City Council,30UH,Amazon,Health & Housing,Equipment and Tools - General,01/07/2015,bpc002945,18.71
Lancaster City Council,30UH,Amazon,Health & Housing,Equipment and Tools - General,31/07/2015,bpc003106,14.14
Lancaster City Council,30UH,Amazon,Health & Housing,Equipment and Tools - General,31/07/2015,bpc003107,8.66
Lancaster City Council,30UH,Amazon,Health & Housing,Equipment and Tools - General,31/07/2015,bpc003110,25.80
Lancaster City Council,30UH,Amazon,Health & Housing,Equipment and Tools - General,31/07/2015,bpc003113,45.79
Lancaster City Council,30UH,Amazon,Health & Housing,Materials - General,01/07/2015,bpc002938,3.07
Lancaster City Council,30UH,Amazon,Health & Housing,Materials - General,01/07/2015,bpc002939,9.59
Lancaster City Council,30UH,Amazon,Health & Housing,Materials - General,01/07/2015,bpc002942,3.09
Lancaster City Council,30UH,Amazon,Health & Housing,Materials - General,31/07/2015,bpc003105,9.42
Lancaster City Council,30UH,Amazon,Health & Housing,Materials - General,31/07/2015,bpc003108,18.55
Lancaster City Council,30UH,Amazon,Health & Housing,Materials - General,31/07/2015,bpc003109,29.67
Lancaster City Council,30UH,Amazon,Health & Housing,Printing & Stationery,01/07/2015,bpc002941,14.16
Lancaster City Council,30UH,Amazon,Health & Housing,Printing & Stationery,01/07/2015,bpc002943,13.62
Lancaster City Council,30UH,Amazon,Health & Housing,Printing & Stationery,01/07/2015,bpc002944,7.93
Lancaster City Council,30UH,Amazon,Health & Housing,Printing & Stationery,31/07/2015,bpc003104,4.98
Lancaster City Council,30UH,Amazon,Health & Housing,Printing & Stationery,31/07/2015,bpc003111,1.33
Lancaster City Council,30UH,Amazon,Health & Housing,Printing & Stationery,31/07/2015,bpc003112,2.32
Lancaster City Council,30UH,XC Trains Ltd Birmingham,Health & Housing,Use Of Public Tpt - Officers,25/08/2015,bpc003221,85.10
Lancaster City Council,30UH,YeSS,Health & Housing,Equipment and Tools - General,27/07/2015,bpc003047,13.96
Lancaster City Council,30UH,YMCA Lakeside,Health & Housing,Services - General,22/07/2015,bpc003038,400.00
Lancaster City Council,30UH,Northern Rail,Governance,Use Of Public Tpt - Officers,11/09/2015,lpc000275,8.80
Lancaster City Council,30UH,Local Government Association ,Resources,Conferences & Seminars,16/09/2015,fpc000142,238.80
Lancaster City Council,30UH,premier inn,Resources,Conferences & Seminars,10/09/2015,fpc000139,166.75
Lancaster City Council,30UH,PREMIER INN,Resources,Conferences & Seminars,14/10/2015,fpc000140,-166.75
Lancaster City Council,30UH,virgin,Resources,Use Of Public Tpt - Officers,28/09/2015,fpc000145,-44.00
Lancaster City Council,30UH,virgin,Resources,Use Of Public Tpt - Officers,16/09/2015,fpc000144,-35.30
Lancaster City Council,30UH,Virgin,Resources,Use Of Public Tpt - Officers,16/09/2015,fpc000143,89.50
Lancaster City Council,30UH,Westminster Forum,Resources,Conferences & Seminars,16/09/2015,fpc000141,252.00
